{"text_format":"1","workbook":"xlsx","n_sheets":17,"sheets":["Финотчет","Исп.01","Исп.02","Исп.03","Исп.04","Исп.05","Исп.06","Исп.07","Исп.08","Исп.09","Исп.10","Исп.11","Исп.12","Исп.13","Исп.14","Исп.15","Лист1"],"not_rendered":{"charts":0,"images":0,"macros":1,"external_links":0,"defined_names":0,"comments":16,"pivot_tables":0},"unopened":[],"bounds":{"document_bytes":16777216,"sheet_cells":100000,"rows_first":2000,"rows_last":500,"rows_between":2000,"halvings":0,"cell_chars":16384,"cell_head_chars":4096},"cells_cut":0,"cells_raw":0,"read":"whole","date_system":"1900"}

{"sheet":"Финотчет","index":0,"n_rows":100,"n_cols":8,"rows_kept":100,"cut":false,"hidden":false,"merged":[[63,1,63,6],[58,2,58,5],[62,2,62,5],[99,2,99,5],[66,2,66,5],[70,2,70,5],[87,2,87,5],[74,2,74,5],[78,2,78,5],[95,2,95,5],[71,1,71,6],[72,1,72,6],[75,1,75,6],[76,1,76,6],[79,1,79,6],[97,1,97,6],[68,1,68,6],[67,1,67,6],[77,1,77,6],[96,1,96,6],[80,1,80,6],[88,1,88,6],[81,1,81,6],[55,1,55,6],[54,2,54,5],[50,2,50,5],[47,1,47,6],[24,1,24,6],[25,1,25,2],[35,2,35,4],[35,5,35,6],[27,1,27,2],[29,1,29,2],[31,1,31,2],[52,1,52,6],[8,8,8,11],[7,7,7,11],[6,3,6,6],[46,2,46,5],[37,3,37,6],[40,1,40,6],[42,1,42,6],[44,3,44,6],[43,1,43,2],[33,1,33,2],[39,3,39,6],[41,3,41,6],[21,1,21,6],[22,1,22,6],[0,1,0,7],[91,2,91,5],[92,1,92,6],[93,1,93,6],[1,1,1,4],[2,3,2,6],[4,3,4,6],[4,1,4,2],[89,1,89,6],[61,1,61,6],[48,1,48,6],[51,1,51,6],[56,1,56,6],[60,1,60,6],[59,1,59,6],[64,1,64,6]]}
["!!!","Вначале заполняются анкеты Исполнителей (во вкладках Исп.01, Исп.02, ..)   /   В отчёте необходимо заполнить поля, подсвеченные желтым цветом.  !!!  "]
[]
[null,null,"Статус отчета   выберите из списка:","Не выбрано",null,null,null,{"$f":"IF(AND(D3=\"\",G9>0),\"Указать статус отчета!\",\"\")","v":""}]
[]
[null,"Укажите размер гранта в отчетный период (тыс. руб.):"]
[]
[null,"6.1","Сведения о фактических расходах по проекту в отчетном периоде   ","               Заполняется кассовым методом с учетом средств, оставшихся с предыдущих периодов.                       Значения указываются в тыс. рублей (три знака после запятой!)"]
[null,null,"Направления расходования средств гранта.             ","Неиспользованный остаток средств предыдущего периода  ","Объем финансирования в отчетном периоде ","Фактические расходы                ","Неиспользованный остаток средств ",{"$f":"IF((D5+D9)=E9,\"\",\"!!!   'Объем финансирования в отчетном периоде'  ДОЛЖЕН БЫТЬ РАВЕН  Сумме остатка средств предыдущего периода и средств гранта в отчетный период\")","v":""}]
[null,null,"Всего:",{"$f":"D15+D16+D17+D18+D19+D20","v":0},{"$f":"E15+E16+E17+E18+E19+E20","v":0},{"$f":"F15+F16+F17+F18+F19+F20","v":0},{"$f":"G15+G16+G17+G18+G19+G20","v":0},{"$f":"IF(G9<0,\"Остаток не может быть отрицательным!\",IF(G9>0,\"Есть остаток!\",\"\"))","v":""}]
[null,null,"Вознаграждение членов научного коллектива                  (с учетом страховых взносов во внебюджетные фонды, без лиц категории «вспомогательный персонал»)",null,null,{"$f":"Исп.01!D137+Исп.02!D137+Исп.03!D137+Исп.04!D137+Исп.05!D137+Исп.06!D137+Исп.07!D137+Исп.08!D137+Исп.09!D137+Исп.10!D137+Исп.11!D137+Исп.12!D137+Исп.13!D137+Исп.14!D137+Исп.15!D137","v":0},{"$f":"E10-F10","v":0},{"$f":"IF(G10<0,\"Остаток не может быть отрицательным!\",IF(G10>0,\"Есть остаток!\",\"\"))","v":""}]
[null,null,"в том числе:"]
[null,null,"Вознаграждение членов научного коллектива – исследователей в возрасте до 39 лет (включительно)",null,null,{"$f":"Исп.01!D139+Исп.02!D139+Исп.03!D139+Исп.04!D139+Исп.05!D139+Исп.06!D139+Исп.07!D139+Исп.08!D139+Исп.09!D139+Исп.10!D139+Исп.11!D139+Исп.12!D139+Исп.13!D139+Исп.14!D139+Исп.15!D139","v":0},{"$f":"E12-F12","v":0},{"$f":"IF(G12<0,\"Остаток не может быть отрицательным!\",IF(G12>G10,\"Значение ячейки G12 не может быть больше значения явейки G10\",IF(G12>0,\"Есть остаток!\",\"\")))","v":""}]
[null,null,"Вознаграждение лиц категории «вспомогательный персонал»                                                                                              (с учетом страховых взносов во внебюджетные фонды)",null,null,null,{"$f":"E13-F13","v":0},{"$f":"IF(G13<0,\"Остаток не может быть отрицательным!\",IF(G13>0,\"Есть остаток!\",\"\"))","v":""}]
[null,null,"Оплата отпусков и выплаты компенсаций                           за неиспользованные отпуска лицам, являвшимся членами научного коллектива или лицами категории «вспомогательный персонал» (с учетом страховых взносов во внебюджетные фонды) в предыдущем отчетном периоде и не принимавшим участие в реализации проекта в данном отчетном периоде, оплата недоимки  (возникшей по действующему грантовому соглашению) по страховым взносам",null,null,null,{"$f":"E14-F14","v":0},{"$f":"IF(G14<0,\"Остаток не может быть отрицательным!\",IF(G14>0,\"Есть остаток!\",\"\"))","v":""}]
[null,1,"Итого вознаграждение  (с учетом страховых взносов во внебюджетные фонды)",{"$f":"D10+D13+D14","v":0},{"$f":"E10+E13+E14","v":0},{"$f":"F10+F13+F14","v":0},{"$f":"G10+G13+G14","v":0}]
[null,2,"Оплата научно-исследовательских работ сторонних организаций,  направленных на выполнение научного проекта",null,null,null,{"$f":"E16-F16","v":0},{"$f":"IF(G16<0,\"Остаток не может быть отрицательным!\",IF(G16>0,\"Перенос средств на следующий период выполнения работ по данной статье невозможен!\",\"\"))","v":""}]
[null,3,"Расходы на приобретение оборудования и иного имущества,   необходимых для проведения научного исследования (включая обучение работников, монтажные, пуско-наладочные и ремонтные  работы)\nНе связанные с осуществлением текущей деятельности организации.",null,null,null,{"$f":"E17-F17","v":0},{"$f":"IF(G17<0,\"Остаток не может быть отрицательным!\",IF(G17>0,\"Есть остаток!\",\"\"))","v":""}]
[null,4,"Расходы на приобретение материалов и комплектующих   для проведения научного исследования",null,null,null,{"$f":"E18-F18","v":0},{"$f":"IF(G18<0,\"Остаток не может быть отрицательным!\",IF(G18>0,\"Есть остаток!\",\"\"))","v":""}]
[null,5,"Иные расходы  для целей выполнения проекта               Расходование средств гранта на строительство капитальных объектов, образовательную деятельность, организацию или проведение научных, образовательных мероприятий не разрешается.",null,null,null,{"$f":"E19-F19","v":0},{"$f":"IF(G19<0,\"Остаток не может быть отрицательным!\",IF(G19>0,\"Есть остаток!\",\"\"))","v":""}]
[null,6,"Накладные расходы организации",null,null,null,{"$f":"E20-F20","v":0},{"$f":"IF(G20<0,\"Остаток не может быть отрицательным!\",IF(G20>0,\"Перенос средств на следующий период выполнения работ по данной статье невозможен!\",\"\"))","v":""}]
[]
[null,"Перечень необратимых расходов, связанных с выполнением работ  из Плана научного исследования,  которые не были выполнены в связи с объективными обстоятельствами         (Для каждой командировки указывается командируемый и цель командирования, сумма необратимых расходов. Приводится перечень договоров услуг с указанием предмета и суммы каждого договора):"]
[]
[]
[null,"Объем денежных средств,  НЕ затраченных на выполнение работ  из Плана научного исследования, которые НЕ были выполнены в связи с объективными обстоятельствами, и которые будут возвращены в Фонд,  с учетом понесенных необратимых расходов (при наличии):"]
[null,null,null,null,"рублей",null,"копеек"]
[]
[null,"Объем денежных средств, затраченных на выполнение дополнительных  работ, соответствующих цели выполняемого исследования:",null,null,"рублей",null,"копеек"]
[]
[null,"Объем  необратимых  расходов,   связанных  с выполнением работ   из Плана научного исследования, которые  не были  выполнены в связи с объективными обстоятельствами:",null,null,"рублей",null,"копеек"]
[]
[null,"Объем денежных средств, не затраченных на выполнение работ из Плана научного исследования, за вычетом объема денежных средств, затраченных на выполнение дополнительных работ, соответствующих цели выполняемого\nисследования, и понесенных необратимых расходов (при наличии)  /  (будут возвращены в Фонд):",null,null,"рублей",null,"копеек"]
[]
[null,"Остаток средств гранта на дату окончания этапа           включая оценочные и условные обязательства (например, резерв отпускных, размер оплаты страховых взносов во внебюджетные фонды после последнего дня отчетного этапа)",null,null,"рублей",null,"копеек"]
[]
[null,null,"Номер и дата  ПЛАТЁЖНОГО ПОРУЧЕНИЯ  в случае возврата средств гранта в РНФ:"]
[]
[null,"6.2",{"$f":"IF(OR(F16>0,F19>0),\"Расшифровка расходов:\",\"\")","v":""}]
[]
[null,null,"Оплата научно-исследовательских работ СТОРОННИХ ОРГАНИЗАЦИЙ, направленных на выполнение научного проекта:"]
[]
[null,null,"Иные расходы:"]
[]
[]
[null,"6.3","Обоснование наличия остатка средств гранта по статьям, неизрасходованного в отчетный период.   Указывается классификация расходов в последующие периоды:"]
[]
[null,"6.4","Грант использовался в соответствии с его целевым назначением, условиями предоставления гранта.  Средства гранта не использовались на обеспечение текущей деятельности организации, командирование за счет средств гранта осуществлялось только для целей, соответствующих целям гранта:",null,null,null,"Не выбрано"]
[null,{"$f":"IF(G47=\"Нет\",\"Необходимо дать пояснения о причинах невыполнения данного обязательства:\",\"\")","v":""}]
[]
[]
[null,"6.5","Изменение сметы и расходование средств гранта   (в том числе согласие на заключение трудовых (срочных трудовых) договоров, договоров гражданско-правового характера, выплата вознаграждения, командирование, закупки материалов, комплектующих, оборудования, оплата договоров на оказание услуг и т.п.)  осуществлялось локальным актом организации только по письменному решению (заявке) руководителя проекта:",null,null,null,"Нет"]
[null,{"$f":"IF(G51=\"Нет\",\"Необходимо дать пояснения о причинах невыполнения данного обязательства:\",\"\")","v":"Необходимо дать пояснения о причинах невыполнения данного обязательства:"}]
[]
[]
[null,"6.6","Вознаграждение выплачивалось всем членам научного коллектива:",null,null,null,"Нет"]
[null,{"$f":"IF(G55=\"Нет\",\"Необходимо дать пояснения о причинах невыполнения данного обязательства (п.2.3.6 соглашения):\",\"\")","v":"Необходимо дать пояснения о причинах невыполнения данного обязательства (п.2.3.6 соглашения):"}]
[]
[]
[null,"6.7","Общий размер ежегодного вознаграждения (с учетом страховых взносов во внебюджетные фонды) каждого из членов научного коллектива не превышал   30 %  от суммы ежегодного вознаграждения всех членов научного коллектива:                                                             (15 % для проектов в памках  РНФ 81 \"Лаборатории мирового уровня\")                                                                                                                                 ПРИМЕЧАНИЕ:  требование НЕ актуально для проектов в рамках \"Малые отдельные научные группы\", \"Инициативные исследования молодыми учеными\"   -   выбрать прочерк  \" - \"",null,null,null,"Нет"]
[null,{"$f":"IF(G59=\"Нет\",\"Необходимо дать пояснения о причинах невыполнения данного обязательства:\",\"\")","v":"Необходимо дать пояснения о причинах невыполнения данного обязательства:"}]
[]
[]
[null,null,"Размер ежегодного вознаграждения (с учетом страховых взносов во внебюджетные фонды) всех членов научного коллектива в возрасте до 39 лет (включительно) был не менее 35 %  ( 70 % для проектов \"Научных групп под руководством молодых ученых\" ) от суммы ежегодного вознаграждения всех членов научного коллектива:",null,null,null,"Нет"]
[null,{"$f":"IF(G63=\"Нет\",\"Необходимо дать пояснения о причинах невыполнения данного обязательства (п.2.3.6 соглашения) и о принимаемых мерах по устранению данного нарушения:\",\"\")","v":"Необходимо дать пояснения о причинах невыполнения данного обязательства (п.2.3.6 соглашения) и о принимаемых мерах по устранению данного нарушения:"}]
[]
[]
[null,"6.8","Организация не превышала установленную соглашением долю услуг сторонних организаций в расходах по гранту:",null,null,null,"Нет"]
[null,{"$f":"IF(G67=\"Нет\",\"Необходимо дать пояснения о причинах невыполнения данного обязательства:\",\"\")","v":"Необходимо дать пояснения о причинах невыполнения данного обязательства:"}]
[]
[]
[null,"6.9","Организация не превышала установленную соглашением долю накладных расходов в расходах по гранту:",null,null,null,"Нет"]
[null,{"$f":"IF(G71=\"Нет\",\"Необходимо дать пояснения о причинах невыполнения данного обязательства:\",\"\")","v":"Необходимо дать пояснения о причинах невыполнения данного обязательства:"}]
[]
[]
[null,"6.12","Членом научного коллектива проекта не являлся ученый, в любом качестве одновременно принимавший участие в реализации более чем двух  проектов, поддержанных Фондом:",null,null,null,"Нет"]
[null,{"$f":"IF(G75=\"Нет\",\"Необходимо дать пояснения о причинах невыполнения данного обязательства:\",\"\")","v":"Необходимо дать пояснения о причинах невыполнения данного обязательства:"}]
[]
[]
[null,null,"Форма трудового договора с руководителем проекта соответствует указанной в исходной заявке на участие в конкурсе (п. 2.16 Формы 2):\n«Организация будет являться основным местом работы: да»"]
[null,{"$f":"IF(G79=\"Нет\",\"Необходимо дать пояснения о причинах невыполнения данного обязательства:\",\"\")","v":""}]
[]
[]
[]
[null,null,"Показатели","Единица измерения","Факт"]
[null,null,"Количество лиц категории «вспомогательный персонал»"," \nчеловек"]
[]
[]
[null,"6.13","Организация выполняла иные условия соглашения и требования законодательства:\nсвоевременно на основании письменного решения (заявки) руководителя проекта устанавливала приказом состав (изменение состава) научного коллектива (п.2.3.2 соглашения);\nзаключала с членами научного коллектива гражданско-правовые или трудовые (срочные трудовые) договоры, при необходимости дополняла действующие гражданско-правовые или трудовые договоры с членами научного коллектива в соответствии с соглашением (для руководителя проекта – трудовой (срочный трудовой) договор), при необходимости поручила членам научного коллектива выполнение проекта в соответствии с требованиями Трудового кодекса Российской Федерации (п.2.3.4 и п.2.3.5 соглашения):",null,null,null,"Не выбрано"]
[null,{"$f":"IF(G88=\"Нет\",\"Необходимо дать пояснения о причинах невыполнения данного обязательства:\",\"\")","v":""}]
[]
[]
[null,null,"Заключенный с руководителем проекта трудовой (срочный трудовой) договор предусматривает продолжительность рабочего времени исходя из ежедневного или еженедельного графика работы:",null,null,null,"Нет"]
[null,{"$f":"IF(G92=\"Нет\",\"Необходимо дать пояснения о причинах невыполнения данного обязательства:\",\"\")","v":"Необходимо дать пояснения о причинах невыполнения данного обязательства:"}]
[]
[]
[null,null,"Гражданско-правовые договоры (при наличии) с членами научного коллектива и лицами категории «вспомогательный персонал» в техническом задании содержат оцениваемые параметры (технические требования) заказываемых работ или услуг, а также порядок доступа к оборудованию и материалам, необходимых для исполнения договоров; организации представлены отчеты по НИР по каждому гражданско-правовому договору на НИР, соответствующие оцениваемым параметрам (техническим требованиям) заказываемых работ или услуг; в случае осуществления поездок для целей гранта договоры (или локальные акты организации) содержат порядок компенсации (возмещения) расходов по проезду и проживанию, а также описание категорий билетов и гостиничных номеров, расходы по которым подлежат компенсации:",null,null,null,"Нет"]
[null,{"$f":"IF(G96=\"Нет\",\"Необходимо дать пояснения о причинах невыполнения данного обязательства:\",\"\")","v":"Необходимо дать пояснения о причинах невыполнения данного обязательства:"}]
[]
[]
[null,"6.14","Организация устранила в отчетном периоде ранее выявленные Фондом замечания (при наличии):",null,null,null,"Замечаний не имелось"]

{"sheet":"Исп.01","index":1,"n_rows":140,"n_cols":9,"rows_kept":140,"cut":false,"hidden":false,"merged":[[34,8,34,9],[81,1,81,2],[81,5,81,7],[79,5,79,7],[73,1,73,2],[75,1,75,2],[77,1,77,2],[79,1,79,2],[75,3,75,5],[77,3,77,7],[71,1,71,2],[45,6,45,8],[62,6,62,8],[69,1,69,2],[36,1,36,2],[38,1,38,2],[0,1,0,8],[20,3,20,4],[22,3,22,4],[24,3,24,4],[17,4,17,5],[24,6,24,8],[18,1,18,5],[138,4,138,5],[139,4,139,5],[29,4,29,5],[26,3,26,4],[28,3,28,4],[30,3,30,4],[31,4,31,5],[82,5,82,7],[136,4,136,5],[137,4,137,5],[32,1,32,9],[33,4,33,5],[71,3,71,5],[41,4,41,5],[43,4,43,5],[45,4,45,5],[64,1,64,2],[66,1,66,2],[36,5,36,7],[38,5,38,7],[66,5,66,7],[64,5,64,7],[47,4,47,5],[62,4,62,5]]}
[null,"!!!    В отчёте необходимо заполнить поля, подсвеченные желтым цветом"]
[]
[null,"6.10.1. ФИО члена научного коллектива",null,null,null,"Средняя ЗП по региону",77,"т.р./мес."]
[]
[null,"В случае изменения в отчетный период фамилии, имени и/или отчества члена научного коллектива укажите ФИО до изменения: "]
[]
[null,"Руководитель проекта"]
[]
[null,"Основной исполнитель проекта"]
[]
[null,"6.10.2. Число, месяц и год рождения",null,{"$f":"INT(YEARFRAC(C11,TODAY(),1))","v":125},"Возраст (Годы)"]
[]
[null,"6.10.3. Должность   (при наличии трудового договора с организацией)"]
[]
[null,"6.10.4. Ученая степень   (на дату представления отчета)"]
[]
[null,"6.10.5. Являлся на момент подписания соглашения работником организации:"]
[]
[null,"6.10.6.  Статус исполнителя:"]
[null,null,null,null,null,"Изм. Статуса"]
[null,"  студент очной формы обучения   ",null,{"$f":"IF(C21=\"Да\",\"Статус изменился в отчетном периоде?:\", \"\")","v":""}]
[]
[null,"  аспирант (интерн, ординатор, адъюнкт) очной формы обучения",null,{"$f":"IF(C23=\"Да\",\"Статус изменился в отчетном периоде?:\", \"\")","v":""}]
[]
[null,"  исследователь в возрасте до 39 лет (включительно, на момент начала этапа) ",null,{"$f":"IF(C25=\"Да\",\"Статус изменился в отчетном периоде?:\", \"\")","v":""},null,null,{"$f":"IF(D11=40,\"!!!  Внимание!  Исполнителю 40 лет - статус мог измениться\",\"\")","v":""}]
[]
[null,"  российский ученый  ",null,{"$f":"IF(C27=\"Да\",\"Статус изменился в отчетном периоде?:\", \"\")","v":""}]
[]
[null,"  иностранный ученый ",null,{"$f":"IF(C29=\"Да\",\"Статус изменился в отчетном периоде?:\", \"\")","v":""}]
[]
[null,"Статус  «исследователь в возрасте до 39 лет (включительно)» изменился  в отчетном периоде:",{"$f":"IF(C25=\"Нет\",\"Нет\",IF(F25=\"Да\",\"Да\",IF(F25=\"Нет\",\"Нет\",\"\")))","v":""},{"$f":"IF(C31=\"Да\",\"!!!  Укажите дату изменения статуса:\", \"\")","v":""}]
[]
[null,"6.10.7. Форма отношений с организацией в рамках выполнения проекта РНФ:"]
[]
[null,"  Трудовой договор",null,{"$f":"IF(C35=\"Да\",\"Форма договора:\",\"\")","v":""},null,{"$f":"IF(E35=\"\",\"\",IF(E35=\"не выбрано\",\"\",\"Укажите долю ставки:\"))","v":""},null,{"$f":"IF(E35=\"дистанционный трудовой договор\",\"Укажите населенный пункт, где расположено место работы:\",\"\")","v":""}]
[]
[null,"6.10.13. Сумма вознаграждения с начислениями в рамках трудового договора ДО изменения статуса 'Исследователь в возрасте до 39 лет' (включительно, на момент начала этапа), в том числе выплаты в месяц, когда изменился статус)",null,null,"тыс. рублей","!!!!   Сумму необходимо округлить до отрёх знаков после запятой!!!                             Пример:      302441 руб. следует указать как 302,441 тыс. руб.",null,null,{"$f":"IF(5*G3*$G$35>=(D37+D39)/12,\"ОК\",\"Значение выплат превышено\")","v":"ОК"}]
[]
[null,{"$f":"IF(F25=\"Да\",\"6.10.14. Сумма вознаграждения с начислениями  в  рамках трудового договора ПОСЛЕ  изменения статуса исполнителя 'Исследователь в возрасте до 39 лет'\",\"\")","v":""},null,null,{"$f":"IF(F25=\"Да\",\"тыс. рублей\",\"\")","v":""}]
[]
[]
[null,"  Гражданско-правовой договор",null,{"$f":"IF(C42=\"Да\",\"Укажите:\",\"\")","v":""},{"$f":"IF(C42=\"Да\",\"дата начала  действия  первого  гражданско-правового договора в отчетном периоде:\",\"\")","v":""}]
[]
[null,null,null,null,{"$f":"IF(C42=\"Да\",\"дата окончания  действия  последнего гражданско-правового договора в отчетном периоде: \",\"\")","v":""}]
[]
[null,null,null,null,{"$f":"IF(C42=\"Да\",\"периоды (даты) действия гражданско-правовых договоров:\",\"\")","v":""}]
[]
[null,null,null,null,{"$f":"IF(C42=\"Да\",\"расчет общего количества дней по всем ГПХ:\",\"\")","v":""},null,{"$f":"IF(C42=\"Да\",\"Дата начала ДГПХ\",\"\")","v":""},{"$f":"IF(C42=\"Да\",\"Дата окончания ДГПХ\",\"\")","v":""},{"$f":"IF(C42=\"Да\",\"Количество дней ДГПХ\",\"\")","v":""}]
[null,null,null,null,null,1,null,null,{"$f":"DATEDIF(G49,H49,\"D\")+IF(AND(G49=0,H49=0),0,1)","v":0}]
[null,null,null,null,null,2,null,null,{"$f":"DATEDIF(G50,H50,\"D\")+IF(AND(G50=0,H50=0),0,1)","v":0}]
[null,null,null,null,null,3,null,null,0]
[null,null,null,null,null,4,null,null,0]
[null,null,null,null,null,5,null,null,0]
[null,null,null,null,null,6,null,null,0]
[null,null,null,null,null,7,null,null,0]
[null,null,null,null,null,8,null,null,0]
[null,null,null,null,null,9,null,null,0]
[null,null,null,null,null,10,null,null,0]
[null,null,null,null,null,11,null,null,0]
[null,null,null,null,null,12,null,null,0]
[null,null,null,null,null,13,null,null,0]
[null,null,null,null,null,14,null,null,0]
[null,null,null,null,{"$f":"IF(C42=\"Да\",\"общее количество календарных дней, на которое заключены гражданско-правовые договоры в отчетном периоде:\",\"\")","v":""},null,{"$f":"SUM(I49:I62)","v":0}]
[]
[null,"6.10.13. Сумма вознаграждения с начислениями в рамках трудового договора ДО изменения статуса 'Исследователь в возрасте до 39 лет' (включительно, на момент начала этапа), в том числе выплаты в месяц, когда изменился статус)",null,null,"тыс. рублей","!!!   Сумму необходимо округлить до отрёх знаков после запятой !!!                             Пример:      302441 руб. следует указать как 302,441 тыс. руб.",null,null,{"$f":"IF((D65+D67)/G63<=15,\"ОК\",\"Значение выплат превышено\")","v":{"$error":"#DIV/0!"}}]
[]
[null,{"$f":"IF(F25=\"Да\",\"6.10.14. Сумма вознаграждения с начислениями  в  рамках трудового договора ПОСЛЕ  изменения статуса исполнителя 'Исследователь в возрасте до 39 лет'\",\"\")","v":""},null,null,{"$f":"IF(F25=\"Да\",\"тыс. рублей\",\"\")","v":""}]
[]
[]
[null,"6.10.8. Дата включения в состав научного коллектива (по приказу)"]
[]
[null,"6.10.9. Реквизиты документа о включении в состав научного коллектива*"]
[]
[null,"6.10.10. Дата исключения из состава научного коллектива                                                    (если исключения не было укажите прочерк   \" - \")",null,null,"(при наличии)"]
[]
[null,"6.10.11. Реквизиты документа об исключении из состава научного коллектива                                 (если исключения не было укажите прочерк  \" - \")",null,null,null,null,"(при наличии)"]
[]
[null,"6.10.12. Перечень дат и реквизитов ВСЕХ иных приказов об изменении состава научного коллектива за ВЕСЬ срок реализации проекта  (если иных приказов не было укажите прочерк  \" - \")",null,null,null,null,null,null,"(при наличии)"]
[]
[null,"6.10.13. Сумма вознаграждения с начислениями  ДО  изменения статуса (п. 6.10.6.) исполнителя, в том числе выплаты в месяц, когда изменился статус)",null,{"$f":"D37+D65","v":0},"тыс. рублей"]
[]
[null,{"$f":"IF(F25=\"Да\",\"6.10.14. Сумма вознаграждения с начислениями  ПОСЛЕ  изменения статуса (п. 6.10.6.) исполнителя\",\"\")","v":""},null,{"$f":"D39+D67","v":0},{"$f":"IF(F25=\"Да\",\"тыс. рублей\",\"\")","v":""}]
[null,null,{"$f":"IF(F26=\"Да\",\"студент\",IF(F28=\"Да\",\"аспирант\",IF(G30=\"Да\",\"ученый до 39 лет\",IF(G32=\"Да\",\"российский ученый\",IF(G33=\"Да\",\"иностранный ученый\",\"\")))))","v":""}]
[]
[]
[]
[]
[]
[]
[]
[]
[]
[]
[]
[]
[]
[]
[]
[]
[]
[]
[]
[]
[]
[]
[]
[]
[]
[]
[]
[]
[]
[]
[]
[]
[]
[]
[]
[]
[]
[]
[]
[]
[]
[]
[]
[]
[]
[]
[]
[]
[]
[]
[]
[null,null,null,"Таблицу под строкой не удалять и не менять !!!!"]
[]
[null,null,"D121",{"$f":"ROUND(D80+D82,3)","v":0},"Общая сумма выплат"]
[null,null,null,{"$f":"ROUND(IF(C25=\"Да\",SUM(D80:D82),0),3)","v":0},"До 39 лет  УЧЕТ статус Не менялся"]
[null,null,"D123",{"$f":"ROUND(IF(C31=\"Да\",D80,D138),3)","v":0},"До 39 лет  УЧЕТ статус ИЗМЕНИЛСЯ"]
[null,null,null,{"$f":"IF(C25=\"Да\",\"1\",\"0\")","v":"0"},"Иссл. До 39 лет 1-Да 0- Нет"]

{"sheet":"Исп.02","index":2,"n_rows":140,"n_cols":9,"rows_kept":140,"cut":false,"hidden":false,"merged":[[136,4,136,5],[137,4,137,5],[138,4,138,5],[139,4,139,5],[79,1,79,2],[79,5,79,7],[81,1,81,2],[81,5,81,7],[82,5,82,7],[73,1,73,2],[75,1,75,2],[75,3,75,5],[77,1,77,2],[77,3,77,7],[62,4,62,5],[62,6,62,8],[64,1,64,2],[64,5,64,7],[66,1,66,2],[66,5,66,7],[41,4,41,5],[30,3,30,4],[31,4,31,5],[32,1,32,9],[33,4,33,5],[34,8,34,9],[24,6,24,8],[36,1,36,2],[36,5,36,7],[38,1,38,2],[38,5,38,7],[71,1,71,2],[69,1,69,2],[0,1,0,8],[26,3,26,4],[28,3,28,4],[29,4,29,5],[17,4,17,5],[18,1,18,5],[20,3,20,4],[22,3,22,4],[24,3,24,4],[71,3,71,5],[43,4,43,5],[45,4,45,5],[45,6,45,8],[47,4,47,5]]}
[null,"!!!    В отчёте необходимо заполнить поля, подсвеченные желтым цветом"]
[]
[null,"6.10.1. ФИО члена научного коллектива",null,null,null,"Средняя ЗП по региону",{"$f":"Исп.01!G3","v":77},"т.р./мес."]
[]
[null,"В случае изменения в отчетный период фамилии, имени и/или отчества члена научного коллектива укажите ФИО до изменения: "]
[]
[null,"Руководитель проекта"]
[]
[null,"Основной исполнитель проекта"]
[]
[null,"6.10.2. Число, месяц и год рождения",null,{"$f":"INT(YEARFRAC(C11,TODAY(),1))","v":125},"Возраст (Годы)"]
[]
[null,"6.10.3. Должность   (при наличии трудового договора с организацией)"]
[]
[null,"6.10.4. Ученая степень   (на дату представления отчета)"]
[]
[null,"6.10.5. Являлся на момент подписания соглашения работником организации:"]
[]
[null,"6.10.6.  Статус исполнителя:"]
[null,null,null,null,null,"Изм. Статуса"]
[null,"  студент очной формы обучения   ",null,{"$f":"IF(C21=\"Да\",\"Статус изменился в отчетном периоде?:\", \"\")","v":""}]
[]
[null,"  аспирант (интерн, ординатор, адъюнкт) очной формы обучения",null,{"$f":"IF(C23=\"Да\",\"Статус изменился в отчетном периоде?:\", \"\")","v":""}]
[]
[null,"  исследователь в возрасте до 39 лет (включительно, на момент начала этапа) ",null,{"$f":"IF(C25=\"Да\",\"Статус изменился в отчетном периоде?:\", \"\")","v":""},null,null,{"$f":"IF(D11=40,\"!!!  Внимание!  Исполнителю 40 лет - статус мог измениться\",\"\")","v":""}]
[]
[null,"  российский ученый  ",null,{"$f":"IF(C27=\"Да\",\"Статус изменился в отчетном периоде?:\", \"\")","v":""}]
[]
[null,"  иностранный ученый ",null,{"$f":"IF(C29=\"Да\",\"Статус изменился в отчетном периоде?:\", \"\")","v":""}]
[]
[null,"Статус  «исследователь в возрасте до 39 лет (включительно)» изменился  в отчетном периоде:",{"$f":"IF(C25=\"Нет\",\"Нет\",IF(F25=\"Да\",\"Да\",IF(F25=\"Нет\",\"Нет\",\"\")))","v":""},{"$f":"IF(C31=\"Да\",\"!!!  Укажите дату изменения статуса:\", \"\")","v":""}]
[]
[null,"6.10.7. Форма отношений с организацией в рамках выполнения проекта РНФ:"]
[]
[null,"  Трудовой договор",null,{"$f":"IF(C35=\"Да\",\"Форма договора:\",\"\")","v":""},null,{"$f":"IF(E35=\"\",\"\",IF(E35=\"не выбрано\",\"\",\"Укажите долю ставки:\"))","v":""},null,{"$f":"IF(E35=\"дистанционный трудовой договор\",\"Укажите населенный пункт, где расположено место работы:\",\"\")","v":""}]
[]
[null,"6.10.13. Сумма вознаграждения с начислениями в рамках трудового договора ДО изменения статуса 'Исследователь в возрасте до 39 лет' (включительно, на момент начала этапа), в том числе выплаты в месяц, когда изменился статус)",null,null,"тыс. рублей","!!!!   Сумму необходимо округлить до отрёх знаков после запятой!!!                             Пример:      302441 руб. следует указать как 302,441 тыс. руб.",null,null,{"$f":"IF(5*G3*$G$35>=(D37+D39)/12,\"ОК\",\"Значение выплат превышено\")","v":"ОК"}]
[]
[null,{"$f":"IF(F25=\"Да\",\"6.10.14. Сумма вознаграждения с начислениями  в  рамках трудового договора ПОСЛЕ  изменения статуса исполнителя 'Исследователь в возрасте до 39 лет'\",\"\")","v":""},null,null,{"$f":"IF(F25=\"Да\",\"тыс. рублей\",\"\")","v":""}]
[]
[]
[null,"  Гражданско-правовой договор",null,{"$f":"IF(C42=\"Да\",\"Укажите:\",\"\")","v":""},{"$f":"IF(C42=\"Да\",\"дата начала  действия  первого  гражданско-правового договора в отчетном периоде:\",\"\")","v":""}]
[]
[null,null,null,null,{"$f":"IF(C42=\"Да\",\"дата окончания  действия  последнего гражданско-правового договора в отчетном периоде: \",\"\")","v":""}]
[]
[null,null,null,null,{"$f":"IF(C42=\"Да\",\"периоды (даты) действия гражданско-правовых договоров:\",\"\")","v":""}]
[]
[null,null,null,null,{"$f":"IF(C42=\"Да\",\"расчет общего количества дней по всем ГПХ:\",\"\")","v":""},null,{"$f":"IF(C42=\"Да\",\"Дата начала ДГПХ\",\"\")","v":""},{"$f":"IF(C42=\"Да\",\"Дата окончания ДГПХ\",\"\")","v":""},{"$f":"IF(C42=\"Да\",\"Количество дней ДГПХ\",\"\")","v":""}]
[null,null,null,null,null,1,null,null,{"$f":"DATEDIF(G49,H49,\"D\")+IF(AND(G49=0,H49=0),0,1)","v":0}]
[null,null,null,null,null,2,null,null,{"$f":"DATEDIF(G50,H50,\"D\")+IF(AND(G50=0,H50=0),0,1)","v":0}]
[null,null,null,null,null,3,null,null,0]
[null,null,null,null,null,4,null,null,0]
[null,null,null,null,null,5,null,null,0]
[null,null,null,null,null,6,null,null,0]
[null,null,null,null,null,7,null,null,0]
[null,null,null,null,null,8,null,null,0]
[null,null,null,null,null,9,null,null,0]
[null,null,null,null,null,10,null,null,0]
[null,null,null,null,null,11,null,null,0]
[null,null,null,null,null,12,null,null,0]
[null,null,null,null,null,13,null,null,0]
[null,null,null,null,null,14,null,null,0]
[null,null,null,null,{"$f":"IF(C42=\"Да\",\"общее количество календарных дней, на которое заключены гражданско-правовые договоры в отчетном периоде:\",\"\")","v":""},null,{"$f":"SUM(I49:I62)","v":0}]
[]
[null,"6.10.13. Сумма вознаграждения с начислениями в рамках трудового договора ДО изменения статуса 'Исследователь в возрасте до 39 лет' (включительно, на момент начала этапа), в том числе выплаты в месяц, когда изменился статус)",null,null,"тыс. рублей","!!!   Сумму необходимо округлить до отрёх знаков после запятой !!!                             Пример:      302441 руб. следует указать как 302,441 тыс. руб.",null,null,{"$f":"IF((D65+D67)/G63<=15,\"ОК\",\"Значение выплат превышено\")","v":{"$error":"#DIV/0!"}}]
[]
[null,{"$f":"IF(F25=\"Да\",\"6.10.14. Сумма вознаграждения с начислениями  в  рамках трудового договора ПОСЛЕ  изменения статуса исполнителя 'Исследователь в возрасте до 39 лет'\",\"\")","v":""},null,null,{"$f":"IF(F25=\"Да\",\"тыс. рублей\",\"\")","v":""}]
[]
[]
[null,"6.10.8. Дата включения в состав научного коллектива (по приказу)"]
[]
[null,"6.10.9. Реквизиты документа о включении в состав научного коллектива*"]
[]
[null,"6.10.10. Дата исключения из состава научного коллектива                                                    (если исключения не было укажите прочерк   \" - \")",null,null,"(при наличии)"]
[]
[null,"6.10.11. Реквизиты документа об исключении из состава научного коллектива                                 (если исключения не было укажите прочерк  \" - \")",null,null,null,null,"(при наличии)"]
[]
[null,"6.10.12. Перечень дат и реквизитов ВСЕХ иных приказов об изменении состава научного коллектива за ВЕСЬ срок реализации проекта  (если иных приказов не было укажите прочерк  \" - \")",null,null,null,null,null,null,"(при наличии)"]
[]
[null,"6.10.13. Сумма вознаграждения с начислениями  ДО  изменения статуса (п. 6.10.6.) исполнителя, в том числе выплаты в месяц, когда изменился статус)",null,{"$f":"D37+D65","v":0},"тыс. рублей"]
[]
[null,{"$f":"IF(F25=\"Да\",\"6.10.14. Сумма вознаграждения с начислениями  ПОСЛЕ  изменения статуса (п. 6.10.6.) исполнителя\",\"\")","v":""},null,{"$f":"D39+D67","v":0},{"$f":"IF(F25=\"Да\",\"тыс. рублей\",\"\")","v":""}]
[null,null,{"$f":"IF(F26=\"Да\",\"студент\",IF(F28=\"Да\",\"аспирант\",IF(G30=\"Да\",\"ученый до 39 лет\",IF(G32=\"Да\",\"российский ученый\",IF(G33=\"Да\",\"иностранный ученый\",\"\")))))","v":""}]
[]
[]
[]
[]
[]
[]
[]
[]
[]
[]
[]
[]
[]
[]
[]
[]
[]
[]
[]
[]
[]
[]
[]
[]
[]
[]
[]
[]
[]
[]
[]
[]
[]
[]
[]
[]
[]
[]
[]
[]
[]
[]
[]
[]
[]
[]
[]
[]
[]
[]
[]
[null,null,null,"Таблицу под строкой не удалять и не менять !!!!"]
[]
[null,null,"D121",{"$f":"ROUND(D80+D82,3)","v":0},"Общая сумма выплат"]
[null,null,null,{"$f":"ROUND(IF(C25=\"Да\",SUM(D80:D82),0),3)","v":0},"До 39 лет  УЧЕТ статус Не менялся"]
[null,null,"D123",{"$f":"ROUND(IF(C31=\"Да\",D80,D138),3)","v":0},"До 39 лет  УЧЕТ статус ИЗМЕНИЛСЯ"]
[null,null,null,{"$f":"IF(C25=\"Да\",\"1\",\"0\")","v":"0"},"Иссл. До 39 лет 1-Да 0- Нет"]

{"sheet":"Исп.03","index":3,"n_rows":140,"n_cols":9,"rows_kept":140,"cut":false,"hidden":false,"merged":[[136,4,136,5],[137,4,137,5],[138,4,138,5],[139,4,139,5],[79,1,79,2],[79,5,79,7],[81,1,81,2],[81,5,81,7],[82,5,82,7],[73,1,73,2],[75,1,75,2],[75,3,75,5],[77,1,77,2],[77,3,77,7],[62,4,62,5],[62,6,62,8],[64,1,64,2],[64,5,64,7],[66,1,66,2],[66,5,66,7],[41,4,41,5],[30,3,30,4],[31,4,31,5],[32,1,32,9],[33,4,33,5],[34,8,34,9],[24,6,24,8],[36,1,36,2],[36,5,36,7],[38,1,38,2],[38,5,38,7],[71,1,71,2],[69,1,69,2],[0,1,0,8],[26,3,26,4],[28,3,28,4],[29,4,29,5],[17,4,17,5],[18,1,18,5],[20,3,20,4],[22,3,22,4],[24,3,24,4],[71,3,71,5],[43,4,43,5],[45,4,45,5],[45,6,45,8],[47,4,47,5]]}
[null,"!!!    В отчёте необходимо заполнить поля, подсвеченные желтым цветом"]
[]
[null,"6.10.1. ФИО члена научного коллектива",null,null,null,"Средняя ЗП по региону",{"$f":"Исп.01!G3","v":77},"т.р./мес."]
[]
[null,"В случае изменения в отчетный период фамилии, имени и/или отчества члена научного коллектива укажите ФИО до изменения: "]
[]
[null,"Руководитель проекта"]
[]
[null,"Основной исполнитель проекта"]
[]
[null,"6.10.2. Число, месяц и год рождения",null,{"$f":"INT(YEARFRAC(C11,TODAY(),1))","v":125},"Возраст (Годы)"]
[]
[null,"6.10.3. Должность   (при наличии трудового договора с организацией)"]
[]
[null,"6.10.4. Ученая степень   (на дату представления отчета)"]
[]
[null,"6.10.5. Являлся на момент подписания соглашения работником организации:"]
[]
[null,"6.10.6.  Статус исполнителя:"]
[null,null,null,null,null,"Изм. Статуса"]
[null,"  студент очной формы обучения   ",null,{"$f":"IF(C21=\"Да\",\"Статус изменился в отчетном периоде?:\", \"\")","v":""}]
[]
[null,"  аспирант (интерн, ординатор, адъюнкт) очной формы обучения",null,{"$f":"IF(C23=\"Да\",\"Статус изменился в отчетном периоде?:\", \"\")","v":""}]
[]
[null,"  исследователь в возрасте до 39 лет (включительно, на момент начала этапа) ",null,{"$f":"IF(C25=\"Да\",\"Статус изменился в отчетном периоде?:\", \"\")","v":""},null,null,{"$f":"IF(D11=40,\"!!!  Внимание!  Исполнителю 40 лет - статус мог измениться\",\"\")","v":""}]
[]
[null,"  российский ученый  ",null,{"$f":"IF(C27=\"Да\",\"Статус изменился в отчетном периоде?:\", \"\")","v":""}]
[]
[null,"  иностранный ученый ",null,{"$f":"IF(C29=\"Да\",\"Статус изменился в отчетном периоде?:\", \"\")","v":""}]
[]
[null,"Статус  «исследователь в возрасте до 39 лет (включительно)» изменился  в отчетном периоде:",{"$f":"IF(C25=\"Нет\",\"Нет\",IF(F25=\"Да\",\"Да\",IF(F25=\"Нет\",\"Нет\",\"\")))","v":""},{"$f":"IF(C31=\"Да\",\"!!!  Укажите дату изменения статуса:\", \"\")","v":""}]
[]
[null,"6.10.7. Форма отношений с организацией в рамках выполнения проекта РНФ:"]
[]
[null,"  Трудовой договор",null,{"$f":"IF(C35=\"Да\",\"Форма договора:\",\"\")","v":""},null,{"$f":"IF(E35=\"\",\"\",IF(E35=\"не выбрано\",\"\",\"Укажите долю ставки:\"))","v":""},null,{"$f":"IF(E35=\"дистанционный трудовой договор\",\"Укажите населенный пункт, где расположено место работы:\",\"\")","v":""}]
[]
[null,"6.10.13. Сумма вознаграждения с начислениями в рамках трудового договора ДО изменения статуса 'Исследователь в возрасте до 39 лет' (включительно, на момент начала этапа), в том числе выплаты в месяц, когда изменился статус)",null,null,"тыс. рублей","!!!!   Сумму необходимо округлить до отрёх знаков после запятой!!!                             Пример:      302441 руб. следует указать как 302,441 тыс. руб.",null,null,{"$f":"IF(5*G3*$G$35>=(D37+D39)/12,\"ОК\",\"Значение выплат превышено\")","v":"ОК"}]
[]
[null,{"$f":"IF(F25=\"Да\",\"6.10.14. Сумма вознаграждения с начислениями  в  рамках трудового договора ПОСЛЕ  изменения статуса исполнителя 'Исследователь в возрасте до 39 лет'\",\"\")","v":""},null,null,{"$f":"IF(F25=\"Да\",\"тыс. рублей\",\"\")","v":""}]
[]
[]
[null,"  Гражданско-правовой договор",null,{"$f":"IF(C42=\"Да\",\"Укажите:\",\"\")","v":""},{"$f":"IF(C42=\"Да\",\"дата начала  действия  первого  гражданско-правового договора в отчетном периоде:\",\"\")","v":""}]
[]
[null,null,null,null,{"$f":"IF(C42=\"Да\",\"дата окончания  действия  последнего гражданско-правового договора в отчетном периоде: \",\"\")","v":""}]
[]
[null,null,null,null,{"$f":"IF(C42=\"Да\",\"периоды (даты) действия гражданско-правовых договоров:\",\"\")","v":""}]
[]
[null,null,null,null,{"$f":"IF(C42=\"Да\",\"расчет общего количества дней по всем ГПХ:\",\"\")","v":""},null,{"$f":"IF(C42=\"Да\",\"Дата начала ДГПХ\",\"\")","v":""},{"$f":"IF(C42=\"Да\",\"Дата окончания ДГПХ\",\"\")","v":""},{"$f":"IF(C42=\"Да\",\"Количество дней ДГПХ\",\"\")","v":""}]
[null,null,null,null,null,1,null,null,{"$f":"DATEDIF(G49,H49,\"D\")+IF(AND(G49=0,H49=0),0,1)","v":0}]
[null,null,null,null,null,2,null,null,{"$f":"DATEDIF(G50,H50,\"D\")+IF(AND(G50=0,H50=0),0,1)","v":0}]
[null,null,null,null,null,3,null,null,0]
[null,null,null,null,null,4,null,null,0]
[null,null,null,null,null,5,null,null,0]
[null,null,null,null,null,6,null,null,0]
[null,null,null,null,null,7,null,null,0]
[null,null,null,null,null,8,null,null,0]
[null,null,null,null,null,9,null,null,0]
[null,null,null,null,null,10,null,null,0]
[null,null,null,null,null,11,null,null,0]
[null,null,null,null,null,12,null,null,0]
[null,null,null,null,null,13,null,null,0]
[null,null,null,null,null,14,null,null,0]
[null,null,null,null,{"$f":"IF(C42=\"Да\",\"общее количество календарных дней, на которое заключены гражданско-правовые договоры в отчетном периоде:\",\"\")","v":""},null,{"$f":"SUM(I49:I62)","v":0}]
[]
[null,"6.10.13. Сумма вознаграждения с начислениями в рамках трудового договора ДО изменения статуса 'Исследователь в возрасте до 39 лет' (включительно, на момент начала этапа), в том числе выплаты в месяц, когда изменился статус)",null,null,"тыс. рублей","!!!   Сумму необходимо округлить до отрёх знаков после запятой !!!                             Пример:      302441 руб. следует указать как 302,441 тыс. руб.",null,null,{"$f":"IF((D65+D67)/G63<=15,\"ОК\",\"Значение выплат превышено\")","v":{"$error":"#DIV/0!"}}]
[]
[null,{"$f":"IF(F25=\"Да\",\"6.10.14. Сумма вознаграждения с начислениями  в  рамках трудового договора ПОСЛЕ  изменения статуса исполнителя 'Исследователь в возрасте до 39 лет'\",\"\")","v":""},null,null,{"$f":"IF(F25=\"Да\",\"тыс. рублей\",\"\")","v":""}]
[]
[]
[null,"6.10.8. Дата включения в состав научного коллектива (по приказу)"]
[]
[null,"6.10.9. Реквизиты документа о включении в состав научного коллектива*"]
[]
[null,"6.10.10. Дата исключения из состава научного коллектива                                                    (если исключения не было укажите прочерк   \" - \")",null,null,"(при наличии)"]
[]
[null,"6.10.11. Реквизиты документа об исключении из состава научного коллектива                                 (если исключения не было укажите прочерк  \" - \")",null,null,null,null,"(при наличии)"]
[]
[null,"6.10.12. Перечень дат и реквизитов ВСЕХ иных приказов об изменении состава научного коллектива за ВЕСЬ срок реализации проекта  (если иных приказов не было укажите прочерк  \" - \")",null,null,null,null,null,null,"(при наличии)"]
[]
[null,"6.10.13. Сумма вознаграждения с начислениями  ДО  изменения статуса (п. 6.10.6.) исполнителя, в том числе выплаты в месяц, когда изменился статус)",null,{"$f":"D37+D65","v":0},"тыс. рублей"]
[]
[null,{"$f":"IF(F25=\"Да\",\"6.10.14. Сумма вознаграждения с начислениями  ПОСЛЕ  изменения статуса (п. 6.10.6.) исполнителя\",\"\")","v":""},null,{"$f":"D39+D67","v":0},{"$f":"IF(F25=\"Да\",\"тыс. рублей\",\"\")","v":""}]
[null,null,{"$f":"IF(F26=\"Да\",\"студент\",IF(F28=\"Да\",\"аспирант\",IF(G30=\"Да\",\"ученый до 39 лет\",IF(G32=\"Да\",\"российский ученый\",IF(G33=\"Да\",\"иностранный ученый\",\"\")))))","v":""}]
[]
[]
[]
[]
[]
[]
[]
[]
[]
[]
[]
[]
[]
[]
[]
[]
[]
[]
[]
[]
[]
[]
[]
[]
[]
[]
[]
[]
[]
[]
[]
[]
[]
[]
[]
[]
[]
[]
[]
[]
[]
[]
[]
[]
[]
[]
[]
[]
[]
[]
[]
[null,null,null,"Таблицу под строкой не удалять и не менять !!!!"]
[]
[null,null,"D121",{"$f":"ROUND(D80+D82,3)","v":0},"Общая сумма выплат"]
[null,null,null,{"$f":"ROUND(IF(C25=\"Да\",SUM(D80:D82),0),3)","v":0},"До 39 лет  УЧЕТ статус Не менялся"]
[null,null,"D123",{"$f":"ROUND(IF(C31=\"Да\",D80,D138),3)","v":0},"До 39 лет  УЧЕТ статус ИЗМЕНИЛСЯ"]
[null,null,null,{"$f":"IF(C25=\"Да\",\"1\",\"0\")","v":"0"},"Иссл. До 39 лет 1-Да 0- Нет"]

{"sheet":"Исп.04","index":4,"n_rows":140,"n_cols":9,"rows_kept":140,"cut":false,"hidden":false,"merged":[[136,4,136,5],[137,4,137,5],[138,4,138,5],[139,4,139,5],[79,1,79,2],[79,5,79,7],[81,1,81,2],[81,5,81,7],[82,5,82,7],[73,1,73,2],[75,1,75,2],[75,3,75,5],[77,1,77,2],[77,3,77,7],[62,4,62,5],[62,6,62,8],[64,1,64,2],[64,5,64,7],[66,1,66,2],[66,5,66,7],[41,4,41,5],[30,3,30,4],[31,4,31,5],[32,1,32,9],[33,4,33,5],[34,8,34,9],[24,6,24,8],[36,1,36,2],[36,5,36,7],[38,1,38,2],[38,5,38,7],[71,1,71,2],[69,1,69,2],[0,1,0,8],[26,3,26,4],[28,3,28,4],[29,4,29,5],[17,4,17,5],[18,1,18,5],[20,3,20,4],[22,3,22,4],[24,3,24,4],[71,3,71,5],[43,4,43,5],[45,4,45,5],[45,6,45,8],[47,4,47,5]]}
[null,"!!!    В отчёте необходимо заполнить поля, подсвеченные желтым цветом"]
[]
[null,"6.10.1. ФИО члена научного коллектива",null,null,null,"Средняя ЗП по региону",{"$f":"Исп.01!G3","v":77},"т.р./мес."]
[]
[null,"В случае изменения в отчетный период фамилии, имени и/или отчества члена научного коллектива укажите ФИО до изменения: "]
[]
[null,"Руководитель проекта"]
[]
[null,"Основной исполнитель проекта"]
[]
[null,"6.10.2. Число, месяц и год рождения",null,{"$f":"INT(YEARFRAC(C11,TODAY(),1))","v":125},"Возраст (Годы)"]
[]
[null,"6.10.3. Должность   (при наличии трудового договора с организацией)"]
[]
[null,"6.10.4. Ученая степень   (на дату представления отчета)"]
[]
[null,"6.10.5. Являлся на момент подписания соглашения работником организации:"]
[]
[null,"6.10.6.  Статус исполнителя:"]
[null,null,null,null,null,"Изм. Статуса"]
[null,"  студент очной формы обучения   ",null,{"$f":"IF(C21=\"Да\",\"Статус изменился в отчетном периоде?:\", \"\")","v":""}]
[]
[null,"  аспирант (интерн, ординатор, адъюнкт) очной формы обучения",null,{"$f":"IF(C23=\"Да\",\"Статус изменился в отчетном периоде?:\", \"\")","v":""}]
[]
[null,"  исследователь в возрасте до 39 лет (включительно, на момент начала этапа) ",null,{"$f":"IF(C25=\"Да\",\"Статус изменился в отчетном периоде?:\", \"\")","v":""},null,null,{"$f":"IF(D11=40,\"!!!  Внимание!  Исполнителю 40 лет - статус мог измениться\",\"\")","v":""}]
[]
[null,"  российский ученый  ",null,{"$f":"IF(C27=\"Да\",\"Статус изменился в отчетном периоде?:\", \"\")","v":""}]
[]
[null,"  иностранный ученый ",null,{"$f":"IF(C29=\"Да\",\"Статус изменился в отчетном периоде?:\", \"\")","v":""}]
[]
[null,"Статус  «исследователь в возрасте до 39 лет (включительно)» изменился  в отчетном периоде:",{"$f":"IF(C25=\"Нет\",\"Нет\",IF(F25=\"Да\",\"Да\",IF(F25=\"Нет\",\"Нет\",\"\")))","v":""},{"$f":"IF(C31=\"Да\",\"!!!  Укажите дату изменения статуса:\", \"\")","v":""}]
[]
[null,"6.10.7. Форма отношений с организацией в рамках выполнения проекта РНФ:"]
[]
[null,"  Трудовой договор",null,{"$f":"IF(C35=\"Да\",\"Форма договора:\",\"\")","v":""},null,{"$f":"IF(E35=\"\",\"\",IF(E35=\"не выбрано\",\"\",\"Укажите долю ставки:\"))","v":""},null,{"$f":"IF(E35=\"дистанционный трудовой договор\",\"Укажите населенный пункт, где расположено место работы:\",\"\")","v":""}]
[]
[null,"6.10.13. Сумма вознаграждения с начислениями в рамках трудового договора ДО изменения статуса 'Исследователь в возрасте до 39 лет' (включительно, на момент начала этапа), в том числе выплаты в месяц, когда изменился статус)",null,null,"тыс. рублей","!!!!   Сумму необходимо округлить до отрёх знаков после запятой!!!                             Пример:      302441 руб. следует указать как 302,441 тыс. руб.",null,null,{"$f":"IF(5*G3*$G$35>=(D37+D39)/12,\"ОК\",\"Значение выплат превышено\")","v":"ОК"}]
[]
[null,{"$f":"IF(F25=\"Да\",\"6.10.14. Сумма вознаграждения с начислениями  в  рамках трудового договора ПОСЛЕ  изменения статуса исполнителя 'Исследователь в возрасте до 39 лет'\",\"\")","v":""},null,null,{"$f":"IF(F25=\"Да\",\"тыс. рублей\",\"\")","v":""}]
[]
[]
[null,"  Гражданско-правовой договор",null,{"$f":"IF(C42=\"Да\",\"Укажите:\",\"\")","v":""},{"$f":"IF(C42=\"Да\",\"дата начала  действия  первого  гражданско-правового договора в отчетном периоде:\",\"\")","v":""}]
[]
[null,null,null,null,{"$f":"IF(C42=\"Да\",\"дата окончания  действия  последнего гражданско-правового договора в отчетном периоде: \",\"\")","v":""}]
[]
[null,null,null,null,{"$f":"IF(C42=\"Да\",\"периоды (даты) действия гражданско-правовых договоров:\",\"\")","v":""}]
[]
[null,null,null,null,{"$f":"IF(C42=\"Да\",\"расчет общего количества дней по всем ГПХ:\",\"\")","v":""},null,{"$f":"IF(C42=\"Да\",\"Дата начала ДГПХ\",\"\")","v":""},{"$f":"IF(C42=\"Да\",\"Дата окончания ДГПХ\",\"\")","v":""},{"$f":"IF(C42=\"Да\",\"Количество дней ДГПХ\",\"\")","v":""}]
[null,null,null,null,null,1,null,null,{"$f":"DATEDIF(G49,H49,\"D\")+IF(AND(G49=0,H49=0),0,1)","v":0}]
[null,null,null,null,null,2,null,null,{"$f":"DATEDIF(G50,H50,\"D\")+IF(AND(G50=0,H50=0),0,1)","v":0}]
[null,null,null,null,null,3,null,null,0]
[null,null,null,null,null,4,null,null,0]
[null,null,null,null,null,5,null,null,0]
[null,null,null,null,null,6,null,null,0]
[null,null,null,null,null,7,null,null,0]
[null,null,null,null,null,8,null,null,0]
[null,null,null,null,null,9,null,null,0]
[null,null,null,null,null,10,null,null,0]
[null,null,null,null,null,11,null,null,0]
[null,null,null,null,null,12,null,null,0]
[null,null,null,null,null,13,null,null,0]
[null,null,null,null,null,14,null,null,0]
[null,null,null,null,{"$f":"IF(C42=\"Да\",\"общее количество календарных дней, на которое заключены гражданско-правовые договоры в отчетном периоде:\",\"\")","v":""},null,{"$f":"SUM(I49:I62)","v":0}]
[]
[null,"6.10.13. Сумма вознаграждения с начислениями в рамках трудового договора ДО изменения статуса 'Исследователь в возрасте до 39 лет' (включительно, на момент начала этапа), в том числе выплаты в месяц, когда изменился статус)",null,null,"тыс. рублей","!!!   Сумму необходимо округлить до отрёх знаков после запятой !!!                             Пример:      302441 руб. следует указать как 302,441 тыс. руб.",null,null,{"$f":"IF((D65+D67)/G63<=15,\"ОК\",\"Значение выплат превышено\")","v":{"$error":"#DIV/0!"}}]
[]
[null,{"$f":"IF(F25=\"Да\",\"6.10.14. Сумма вознаграждения с начислениями  в  рамках трудового договора ПОСЛЕ  изменения статуса исполнителя 'Исследователь в возрасте до 39 лет'\",\"\")","v":""},null,null,{"$f":"IF(F25=\"Да\",\"тыс. рублей\",\"\")","v":""}]
[]
[]
[null,"6.10.8. Дата включения в состав научного коллектива (по приказу)"]
[]
[null,"6.10.9. Реквизиты документа о включении в состав научного коллектива*"]
[]
[null,"6.10.10. Дата исключения из состава научного коллектива                                                    (если исключения не было укажите прочерк   \" - \")",null,null,"(при наличии)"]
[]
[null,"6.10.11. Реквизиты документа об исключении из состава научного коллектива                                 (если исключения не было укажите прочерк  \" - \")",null,null,null,null,"(при наличии)"]
[]
[null,"6.10.12. Перечень дат и реквизитов ВСЕХ иных приказов об изменении состава научного коллектива за ВЕСЬ срок реализации проекта  (если иных приказов не было укажите прочерк  \" - \")",null,null,null,null,null,null,"(при наличии)"]
[]
[null,"6.10.13. Сумма вознаграждения с начислениями  ДО  изменения статуса (п. 6.10.6.) исполнителя, в том числе выплаты в месяц, когда изменился статус)",null,{"$f":"D37+D65","v":0},"тыс. рублей"]
[]
[null,{"$f":"IF(F25=\"Да\",\"6.10.14. Сумма вознаграждения с начислениями  ПОСЛЕ  изменения статуса (п. 6.10.6.) исполнителя\",\"\")","v":""},null,{"$f":"D39+D67","v":0},{"$f":"IF(F25=\"Да\",\"тыс. рублей\",\"\")","v":""}]
[null,null,{"$f":"IF(F26=\"Да\",\"студент\",IF(F28=\"Да\",\"аспирант\",IF(G30=\"Да\",\"ученый до 39 лет\",IF(G32=\"Да\",\"российский ученый\",IF(G33=\"Да\",\"иностранный ученый\",\"\")))))","v":""}]
[]
[]
[]
[]
[]
[]
[]
[]
[]
[]
[]
[]
[]
[]
[]
[]
[]
[]
[]
[]
[]
[]
[]
[]
[]
[]
[]
[]
[]
[]
[]
[]
[]
[]
[]
[]
[]
[]
[]
[]
[]
[]
[]
[]
[]
[]
[]
[]
[]
[]
[]
[null,null,null,"Таблицу под строкой не удалять и не менять !!!!"]
[]
[null,null,"D121",{"$f":"ROUND(D80+D82,3)","v":0},"Общая сумма выплат"]
[null,null,null,{"$f":"ROUND(IF(C25=\"Да\",SUM(D80:D82),0),3)","v":0},"До 39 лет  УЧЕТ статус Не менялся"]
[null,null,"D123",{"$f":"ROUND(IF(C31=\"Да\",D80,D138),3)","v":0},"До 39 лет  УЧЕТ статус ИЗМЕНИЛСЯ"]
[null,null,null,{"$f":"IF(C25=\"Да\",\"1\",\"0\")","v":"0"},"Иссл. До 39 лет 1-Да 0- Нет"]

{"sheet":"Исп.05","index":5,"n_rows":140,"n_cols":9,"rows_kept":140,"cut":false,"hidden":false,"merged":[[136,4,136,5],[137,4,137,5],[138,4,138,5],[139,4,139,5],[79,1,79,2],[79,5,79,7],[81,1,81,2],[81,5,81,7],[82,5,82,7],[73,1,73,2],[75,1,75,2],[75,3,75,5],[77,1,77,2],[77,3,77,7],[62,4,62,5],[62,6,62,8],[64,1,64,2],[64,5,64,7],[66,1,66,2],[66,5,66,7],[41,4,41,5],[30,3,30,4],[31,4,31,5],[32,1,32,9],[33,4,33,5],[34,8,34,9],[24,6,24,8],[36,1,36,2],[36,5,36,7],[38,1,38,2],[38,5,38,7],[71,1,71,2],[69,1,69,2],[0,1,0,8],[26,3,26,4],[28,3,28,4],[29,4,29,5],[17,4,17,5],[18,1,18,5],[20,3,20,4],[22,3,22,4],[24,3,24,4],[71,3,71,5],[43,4,43,5],[45,4,45,5],[45,6,45,8],[47,4,47,5]]}
[null,"!!!    В отчёте необходимо заполнить поля, подсвеченные желтым цветом"]
[]
[null,"6.10.1. ФИО члена научного коллектива",null,null,null,"Средняя ЗП по региону",{"$f":"Исп.01!G3","v":77},"т.р./мес."]
[]
[null,"В случае изменения в отчетный период фамилии, имени и/или отчества члена научного коллектива укажите ФИО до изменения: "]
[]
[null,"Руководитель проекта"]
[]
[null,"Основной исполнитель проекта"]
[]
[null,"6.10.2. Число, месяц и год рождения",null,{"$f":"INT(YEARFRAC(C11,TODAY(),1))","v":125},"Возраст (Годы)"]
[]
[null,"6.10.3. Должность   (при наличии трудового договора с организацией)"]
[]
[null,"6.10.4. Ученая степень   (на дату представления отчета)"]
[]
[null,"6.10.5. Являлся на момент подписания соглашения работником организации:"]
[]
[null,"6.10.6.  Статус исполнителя:"]
[null,null,null,null,null,"Изм. Статуса"]
[null,"  студент очной формы обучения   ",null,{"$f":"IF(C21=\"Да\",\"Статус изменился в отчетном периоде?:\", \"\")","v":""}]
[]
[null,"  аспирант (интерн, ординатор, адъюнкт) очной формы обучения",null,{"$f":"IF(C23=\"Да\",\"Статус изменился в отчетном периоде?:\", \"\")","v":""}]
[]
[null,"  исследователь в возрасте до 39 лет (включительно, на момент начала этапа) ",null,{"$f":"IF(C25=\"Да\",\"Статус изменился в отчетном периоде?:\", \"\")","v":""},null,null,{"$f":"IF(D11=40,\"!!!  Внимание!  Исполнителю 40 лет - статус мог измениться\",\"\")","v":""}]
[]
[null,"  российский ученый  ",null,{"$f":"IF(C27=\"Да\",\"Статус изменился в отчетном периоде?:\", \"\")","v":""}]
[]
[null,"  иностранный ученый ",null,{"$f":"IF(C29=\"Да\",\"Статус изменился в отчетном периоде?:\", \"\")","v":""}]
[]
[null,"Статус  «исследователь в возрасте до 39 лет (включительно)» изменился  в отчетном периоде:",{"$f":"IF(C25=\"Нет\",\"Нет\",IF(F25=\"Да\",\"Да\",IF(F25=\"Нет\",\"Нет\",\"\")))","v":""},{"$f":"IF(C31=\"Да\",\"!!!  Укажите дату изменения статуса:\", \"\")","v":""}]
[]
[null,"6.10.7. Форма отношений с организацией в рамках выполнения проекта РНФ:"]
[]
[null,"  Трудовой договор",null,{"$f":"IF(C35=\"Да\",\"Форма договора:\",\"\")","v":""},null,{"$f":"IF(E35=\"\",\"\",IF(E35=\"не выбрано\",\"\",\"Укажите долю ставки:\"))","v":""},null,{"$f":"IF(E35=\"дистанционный трудовой договор\",\"Укажите населенный пункт, где расположено место работы:\",\"\")","v":""}]
[]
[null,"6.10.13. Сумма вознаграждения с начислениями в рамках трудового договора ДО изменения статуса 'Исследователь в возрасте до 39 лет' (включительно, на момент начала этапа), в том числе выплаты в месяц, когда изменился статус)",null,null,"тыс. рублей","!!!!   Сумму необходимо округлить до отрёх знаков после запятой!!!                             Пример:      302441 руб. следует указать как 302,441 тыс. руб.",null,null,{"$f":"IF(5*G3*$G$35>=(D37+D39)/12,\"ОК\",\"Значение выплат превышено\")","v":"ОК"}]
[]
[null,{"$f":"IF(F25=\"Да\",\"6.10.14. Сумма вознаграждения с начислениями  в  рамках трудового договора ПОСЛЕ  изменения статуса исполнителя 'Исследователь в возрасте до 39 лет'\",\"\")","v":""},null,null,{"$f":"IF(F25=\"Да\",\"тыс. рублей\",\"\")","v":""}]
[]
[]
[null,"  Гражданско-правовой договор",null,{"$f":"IF(C42=\"Да\",\"Укажите:\",\"\")","v":""},{"$f":"IF(C42=\"Да\",\"дата начала  действия  первого  гражданско-правового договора в отчетном периоде:\",\"\")","v":""}]
[]
[null,null,null,null,{"$f":"IF(C42=\"Да\",\"дата окончания  действия  последнего гражданско-правового договора в отчетном периоде: \",\"\")","v":""}]
[]
[null,null,null,null,{"$f":"IF(C42=\"Да\",\"периоды (даты) действия гражданско-правовых договоров:\",\"\")","v":""}]
[]
[null,null,null,null,{"$f":"IF(C42=\"Да\",\"расчет общего количества дней по всем ГПХ:\",\"\")","v":""},null,{"$f":"IF(C42=\"Да\",\"Дата начала ДГПХ\",\"\")","v":""},{"$f":"IF(C42=\"Да\",\"Дата окончания ДГПХ\",\"\")","v":""},{"$f":"IF(C42=\"Да\",\"Количество дней ДГПХ\",\"\")","v":""}]
[null,null,null,null,null,1,null,null,{"$f":"DATEDIF(G49,H49,\"D\")+IF(AND(G49=0,H49=0),0,1)","v":0}]
[null,null,null,null,null,2,null,null,{"$f":"DATEDIF(G50,H50,\"D\")+IF(AND(G50=0,H50=0),0,1)","v":0}]
[null,null,null,null,null,3,null,null,0]
[null,null,null,null,null,4,null,null,0]
[null,null,null,null,null,5,null,null,0]
[null,null,null,null,null,6,null,null,0]
[null,null,null,null,null,7,null,null,0]
[null,null,null,null,null,8,null,null,0]
[null,null,null,null,null,9,null,null,0]
[null,null,null,null,null,10,null,null,0]
[null,null,null,null,null,11,null,null,0]
[null,null,null,null,null,12,null,null,0]
[null,null,null,null,null,13,null,null,0]
[null,null,null,null,null,14,null,null,0]
[null,null,null,null,{"$f":"IF(C42=\"Да\",\"общее количество календарных дней, на которое заключены гражданско-правовые договоры в отчетном периоде:\",\"\")","v":""},null,{"$f":"SUM(I49:I62)","v":0}]
[]
[null,"6.10.13. Сумма вознаграждения с начислениями в рамках трудового договора ДО изменения статуса 'Исследователь в возрасте до 39 лет' (включительно, на момент начала этапа), в том числе выплаты в месяц, когда изменился статус)",null,null,"тыс. рублей","!!!   Сумму необходимо округлить до отрёх знаков после запятой !!!                             Пример:      302441 руб. следует указать как 302,441 тыс. руб.",null,null,{"$f":"IF((D65+D67)/G63<=15,\"ОК\",\"Значение выплат превышено\")","v":{"$error":"#DIV/0!"}}]
[]
[null,{"$f":"IF(F25=\"Да\",\"6.10.14. Сумма вознаграждения с начислениями  в  рамках трудового договора ПОСЛЕ  изменения статуса исполнителя 'Исследователь в возрасте до 39 лет'\",\"\")","v":""},null,null,{"$f":"IF(F25=\"Да\",\"тыс. рублей\",\"\")","v":""}]
[]
[]
[null,"6.10.8. Дата включения в состав научного коллектива (по приказу)"]
[]
[null,"6.10.9. Реквизиты документа о включении в состав научного коллектива*"]
[]
[null,"6.10.10. Дата исключения из состава научного коллектива                                                    (если исключения не было укажите прочерк   \" - \")",null,null,"(при наличии)"]
[]
[null,"6.10.11. Реквизиты документа об исключении из состава научного коллектива                                 (если исключения не было укажите прочерк  \" - \")",null,null,null,null,"(при наличии)"]
[]
[null,"6.10.12. Перечень дат и реквизитов ВСЕХ иных приказов об изменении состава научного коллектива за ВЕСЬ срок реализации проекта  (если иных приказов не было укажите прочерк  \" - \")",null,null,null,null,null,null,"(при наличии)"]
[]
[null,"6.10.13. Сумма вознаграждения с начислениями  ДО  изменения статуса (п. 6.10.6.) исполнителя, в том числе выплаты в месяц, когда изменился статус)",null,{"$f":"D37+D65","v":0},"тыс. рублей"]
[]
[null,{"$f":"IF(F25=\"Да\",\"6.10.14. Сумма вознаграждения с начислениями  ПОСЛЕ  изменения статуса (п. 6.10.6.) исполнителя\",\"\")","v":""},null,{"$f":"D39+D67","v":0},{"$f":"IF(F25=\"Да\",\"тыс. рублей\",\"\")","v":""}]
[null,null,{"$f":"IF(F26=\"Да\",\"студент\",IF(F28=\"Да\",\"аспирант\",IF(G30=\"Да\",\"ученый до 39 лет\",IF(G32=\"Да\",\"российский ученый\",IF(G33=\"Да\",\"иностранный ученый\",\"\")))))","v":""}]
[]
[]
[]
[]
[]
[]
[]
[]
[]
[]
[]
[]
[]
[]
[]
[]
[]
[]
[]
[]
[]
[]
[]
[]
[]
[]
[]
[]
[]
[]
[]
[]
[]
[]
[]
[]
[]
[]
[]
[]
[]
[]
[]
[]
[]
[]
[]
[]
[]
[]
[]
[null,null,null,"Таблицу под строкой не удалять и не менять !!!!"]
[]
[null,null,"D121",{"$f":"ROUND(D80+D82,3)","v":0},"Общая сумма выплат"]
[null,null,null,{"$f":"ROUND(IF(C25=\"Да\",SUM(D80:D82),0),3)","v":0},"До 39 лет  УЧЕТ статус Не менялся"]
[null,null,"D123",{"$f":"ROUND(IF(C31=\"Да\",D80,D138),3)","v":0},"До 39 лет  УЧЕТ статус ИЗМЕНИЛСЯ"]
[null,null,null,{"$f":"IF(C25=\"Да\",\"1\",\"0\")","v":"0"},"Иссл. До 39 лет 1-Да 0- Нет"]

{"sheet":"Исп.06","index":6,"n_rows":140,"n_cols":9,"rows_kept":140,"cut":false,"hidden":false,"merged":[[136,4,136,5],[137,4,137,5],[138,4,138,5],[139,4,139,5],[79,1,79,2],[79,5,79,7],[81,1,81,2],[81,5,81,7],[82,5,82,7],[73,1,73,2],[75,1,75,2],[75,3,75,5],[77,1,77,2],[77,3,77,7],[62,4,62,5],[62,6,62,8],[64,1,64,2],[64,5,64,7],[66,1,66,2],[66,5,66,7],[41,4,41,5],[30,3,30,4],[31,4,31,5],[32,1,32,9],[33,4,33,5],[34,8,34,9],[24,6,24,8],[36,1,36,2],[36,5,36,7],[38,1,38,2],[38,5,38,7],[71,1,71,2],[69,1,69,2],[0,1,0,8],[26,3,26,4],[28,3,28,4],[29,4,29,5],[17,4,17,5],[18,1,18,5],[20,3,20,4],[22,3,22,4],[24,3,24,4],[71,3,71,5],[43,4,43,5],[45,4,45,5],[45,6,45,8],[47,4,47,5]]}
[null,"!!!    В отчёте необходимо заполнить поля, подсвеченные желтым цветом"]
[]
[null,"6.10.1. ФИО члена научного коллектива",null,null,null,"Средняя ЗП по региону",{"$f":"Исп.01!G3","v":77},"т.р./мес."]
[]
[null,"В случае изменения в отчетный период фамилии, имени и/или отчества члена научного коллектива укажите ФИО до изменения: "]
[]
[null,"Руководитель проекта"]
[]
[null,"Основной исполнитель проекта"]
[]
[null,"6.10.2. Число, месяц и год рождения",null,{"$f":"INT(YEARFRAC(C11,TODAY(),1))","v":125},"Возраст (Годы)"]
[]
[null,"6.10.3. Должность   (при наличии трудового договора с организацией)"]
[]
[null,"6.10.4. Ученая степень   (на дату представления отчета)"]
[]
[null,"6.10.5. Являлся на момент подписания соглашения работником организации:"]
[]
[null,"6.10.6.  Статус исполнителя:"]
[null,null,null,null,null,"Изм. Статуса"]
[null,"  студент очной формы обучения   ",null,{"$f":"IF(C21=\"Да\",\"Статус изменился в отчетном периоде?:\", \"\")","v":""}]
[]
[null,"  аспирант (интерн, ординатор, адъюнкт) очной формы обучения",null,{"$f":"IF(C23=\"Да\",\"Статус изменился в отчетном периоде?:\", \"\")","v":""}]
[]
[null,"  исследователь в возрасте до 39 лет (включительно, на момент начала этапа) ",null,{"$f":"IF(C25=\"Да\",\"Статус изменился в отчетном периоде?:\", \"\")","v":""},null,null,{"$f":"IF(D11=40,\"!!!  Внимание!  Исполнителю 40 лет - статус мог измениться\",\"\")","v":""}]
[]
[null,"  российский ученый  ",null,{"$f":"IF(C27=\"Да\",\"Статус изменился в отчетном периоде?:\", \"\")","v":""}]
[]
[null,"  иностранный ученый ",null,{"$f":"IF(C29=\"Да\",\"Статус изменился в отчетном периоде?:\", \"\")","v":""}]
[]
[null,"Статус  «исследователь в возрасте до 39 лет (включительно)» изменился  в отчетном периоде:",{"$f":"IF(C25=\"Нет\",\"Нет\",IF(F25=\"Да\",\"Да\",IF(F25=\"Нет\",\"Нет\",\"\")))","v":""},{"$f":"IF(C31=\"Да\",\"!!!  Укажите дату изменения статуса:\", \"\")","v":""}]
[]
[null,"6.10.7. Форма отношений с организацией в рамках выполнения проекта РНФ:"]
[]
[null,"  Трудовой договор",null,{"$f":"IF(C35=\"Да\",\"Форма договора:\",\"\")","v":""},null,{"$f":"IF(E35=\"\",\"\",IF(E35=\"не выбрано\",\"\",\"Укажите долю ставки:\"))","v":""},null,{"$f":"IF(E35=\"дистанционный трудовой договор\",\"Укажите населенный пункт, где расположено место работы:\",\"\")","v":""}]
[]
[null,"6.10.13. Сумма вознаграждения с начислениями в рамках трудового договора ДО изменения статуса 'Исследователь в возрасте до 39 лет' (включительно, на момент начала этапа), в том числе выплаты в месяц, когда изменился статус)",null,null,"тыс. рублей","!!!!   Сумму необходимо округлить до отрёх знаков после запятой!!!                             Пример:      302441 руб. следует указать как 302,441 тыс. руб.",null,null,{"$f":"IF(5*G3*$G$35>=(D37+D39)/12,\"ОК\",\"Значение выплат превышено\")","v":"ОК"}]
[]
[null,{"$f":"IF(F25=\"Да\",\"6.10.14. Сумма вознаграждения с начислениями  в  рамках трудового договора ПОСЛЕ  изменения статуса исполнителя 'Исследователь в возрасте до 39 лет'\",\"\")","v":""},null,null,{"$f":"IF(F25=\"Да\",\"тыс. рублей\",\"\")","v":""}]
[]
[]
[null,"  Гражданско-правовой договор",null,{"$f":"IF(C42=\"Да\",\"Укажите:\",\"\")","v":""},{"$f":"IF(C42=\"Да\",\"дата начала  действия  первого  гражданско-правового договора в отчетном периоде:\",\"\")","v":""}]
[]
[null,null,null,null,{"$f":"IF(C42=\"Да\",\"дата окончания  действия  последнего гражданско-правового договора в отчетном периоде: \",\"\")","v":""}]
[]
[null,null,null,null,{"$f":"IF(C42=\"Да\",\"периоды (даты) действия гражданско-правовых договоров:\",\"\")","v":""}]
[]
[null,null,null,null,{"$f":"IF(C42=\"Да\",\"расчет общего количества дней по всем ГПХ:\",\"\")","v":""},null,{"$f":"IF(C42=\"Да\",\"Дата начала ДГПХ\",\"\")","v":""},{"$f":"IF(C42=\"Да\",\"Дата окончания ДГПХ\",\"\")","v":""},{"$f":"IF(C42=\"Да\",\"Количество дней ДГПХ\",\"\")","v":""}]
[null,null,null,null,null,1,null,null,{"$f":"DATEDIF(G49,H49,\"D\")+IF(AND(G49=0,H49=0),0,1)","v":0}]
[null,null,null,null,null,2,null,null,{"$f":"DATEDIF(G50,H50,\"D\")+IF(AND(G50=0,H50=0),0,1)","v":0}]
[null,null,null,null,null,3,null,null,0]
[null,null,null,null,null,4,null,null,0]
[null,null,null,null,null,5,null,null,0]
[null,null,null,null,null,6,null,null,0]
[null,null,null,null,null,7,null,null,0]
[null,null,null,null,null,8,null,null,0]
[null,null,null,null,null,9,null,null,0]
[null,null,null,null,null,10,null,null,0]
[null,null,null,null,null,11,null,null,0]
[null,null,null,null,null,12,null,null,0]
[null,null,null,null,null,13,null,null,0]
[null,null,null,null,null,14,null,null,0]
[null,null,null,null,{"$f":"IF(C42=\"Да\",\"общее количество календарных дней, на которое заключены гражданско-правовые договоры в отчетном периоде:\",\"\")","v":""},null,{"$f":"SUM(I49:I62)","v":0}]
[]
[null,"6.10.13. Сумма вознаграждения с начислениями в рамках трудового договора ДО изменения статуса 'Исследователь в возрасте до 39 лет' (включительно, на момент начала этапа), в том числе выплаты в месяц, когда изменился статус)",null,null,"тыс. рублей","!!!   Сумму необходимо округлить до отрёх знаков после запятой !!!                             Пример:      302441 руб. следует указать как 302,441 тыс. руб.",null,null,{"$f":"IF((D65+D67)/G63<=15,\"ОК\",\"Значение выплат превышено\")","v":{"$error":"#DIV/0!"}}]
[]
[null,{"$f":"IF(F25=\"Да\",\"6.10.14. Сумма вознаграждения с начислениями  в  рамках трудового договора ПОСЛЕ  изменения статуса исполнителя 'Исследователь в возрасте до 39 лет'\",\"\")","v":""},null,null,{"$f":"IF(F25=\"Да\",\"тыс. рублей\",\"\")","v":""}]
[]
[]
[null,"6.10.8. Дата включения в состав научного коллектива (по приказу)"]
[]
[null,"6.10.9. Реквизиты документа о включении в состав научного коллектива*"]
[]
[null,"6.10.10. Дата исключения из состава научного коллектива                                                    (если исключения не было укажите прочерк   \" - \")",null,null,"(при наличии)"]
[]
[null,"6.10.11. Реквизиты документа об исключении из состава научного коллектива                                 (если исключения не было укажите прочерк  \" - \")",null,null,null,null,"(при наличии)"]
[]
[null,"6.10.12. Перечень дат и реквизитов ВСЕХ иных приказов об изменении состава научного коллектива за ВЕСЬ срок реализации проекта  (если иных приказов не было укажите прочерк  \" - \")",null,null,null,null,null,null,"(при наличии)"]
[]
[null,"6.10.13. Сумма вознаграждения с начислениями  ДО  изменения статуса (п. 6.10.6.) исполнителя, в том числе выплаты в месяц, когда изменился статус)",null,{"$f":"D37+D65","v":0},"тыс. рублей"]
[]
[null,{"$f":"IF(F25=\"Да\",\"6.10.14. Сумма вознаграждения с начислениями  ПОСЛЕ  изменения статуса (п. 6.10.6.) исполнителя\",\"\")","v":""},null,{"$f":"D39+D67","v":0},{"$f":"IF(F25=\"Да\",\"тыс. рублей\",\"\")","v":""}]
[null,null,{"$f":"IF(F26=\"Да\",\"студент\",IF(F28=\"Да\",\"аспирант\",IF(G30=\"Да\",\"ученый до 39 лет\",IF(G32=\"Да\",\"российский ученый\",IF(G33=\"Да\",\"иностранный ученый\",\"\")))))","v":""}]
[]
[]
[]
[]
[]
[]
[]
[]
[]
[]
[]
[]
[]
[]
[]
[]
[]
[]
[]
[]
[]
[]
[]
[]
[]
[]
[]
[]
[]
[]
[]
[]
[]
[]
[]
[]
[]
[]
[]
[]
[]
[]
[]
[]
[]
[]
[]
[]
[]
[]
[]
[null,null,null,"Таблицу под строкой не удалять и не менять !!!!"]
[]
[null,null,"D121",{"$f":"ROUND(D80+D82,3)","v":0},"Общая сумма выплат"]
[null,null,null,{"$f":"ROUND(IF(C25=\"Да\",SUM(D80:D82),0),3)","v":0},"До 39 лет  УЧЕТ статус Не менялся"]
[null,null,"D123",{"$f":"ROUND(IF(C31=\"Да\",D80,D138),3)","v":0},"До 39 лет  УЧЕТ статус ИЗМЕНИЛСЯ"]
[null,null,null,{"$f":"IF(C25=\"Да\",\"1\",\"0\")","v":"0"},"Иссл. До 39 лет 1-Да 0- Нет"]

{"sheet":"Исп.07","index":7,"n_rows":140,"n_cols":9,"rows_kept":140,"cut":false,"hidden":false,"merged":[[136,4,136,5],[137,4,137,5],[138,4,138,5],[139,4,139,5],[79,1,79,2],[79,5,79,7],[81,1,81,2],[81,5,81,7],[82,5,82,7],[73,1,73,2],[75,1,75,2],[75,3,75,5],[77,1,77,2],[77,3,77,7],[62,4,62,5],[62,6,62,8],[64,1,64,2],[64,5,64,7],[66,1,66,2],[66,5,66,7],[41,4,41,5],[30,3,30,4],[31,4,31,5],[32,1,32,9],[33,4,33,5],[34,8,34,9],[24,6,24,8],[36,1,36,2],[36,5,36,7],[38,1,38,2],[38,5,38,7],[71,1,71,2],[69,1,69,2],[0,1,0,8],[26,3,26,4],[28,3,28,4],[29,4,29,5],[17,4,17,5],[18,1,18,5],[20,3,20,4],[22,3,22,4],[24,3,24,4],[71,3,71,5],[43,4,43,5],[45,4,45,5],[45,6,45,8],[47,4,47,5]]}
[null,"!!!    В отчёте необходимо заполнить поля, подсвеченные желтым цветом"]
[]
[null,"6.10.1. ФИО члена научного коллектива",null,null,null,"Средняя ЗП по региону",{"$f":"Исп.01!G3","v":77},"т.р./мес."]
[]
[null,"В случае изменения в отчетный период фамилии, имени и/или отчества члена научного коллектива укажите ФИО до изменения: "]
[]
[null,"Руководитель проекта"]
[]
[null,"Основной исполнитель проекта"]
[]
[null,"6.10.2. Число, месяц и год рождения",null,{"$f":"INT(YEARFRAC(C11,TODAY(),1))","v":125},"Возраст (Годы)"]
[]
[null,"6.10.3. Должность   (при наличии трудового договора с организацией)"]
[]
[null,"6.10.4. Ученая степень   (на дату представления отчета)"]
[]
[null,"6.10.5. Являлся на момент подписания соглашения работником организации:"]
[]
[null,"6.10.6.  Статус исполнителя:"]
[null,null,null,null,null,"Изм. Статуса"]
[null,"  студент очной формы обучения   ",null,{"$f":"IF(C21=\"Да\",\"Статус изменился в отчетном периоде?:\", \"\")","v":""}]
[]
[null,"  аспирант (интерн, ординатор, адъюнкт) очной формы обучения",null,{"$f":"IF(C23=\"Да\",\"Статус изменился в отчетном периоде?:\", \"\")","v":""}]
[]
[null,"  исследователь в возрасте до 39 лет (включительно, на момент начала этапа) ",null,{"$f":"IF(C25=\"Да\",\"Статус изменился в отчетном периоде?:\", \"\")","v":""},null,null,{"$f":"IF(D11=40,\"!!!  Внимание!  Исполнителю 40 лет - статус мог измениться\",\"\")","v":""}]
[]
[null,"  российский ученый  ",null,{"$f":"IF(C27=\"Да\",\"Статус изменился в отчетном периоде?:\", \"\")","v":""}]
[]
[null,"  иностранный ученый ",null,{"$f":"IF(C29=\"Да\",\"Статус изменился в отчетном периоде?:\", \"\")","v":""}]
[]
[null,"Статус  «исследователь в возрасте до 39 лет (включительно)» изменился  в отчетном периоде:",{"$f":"IF(C25=\"Нет\",\"Нет\",IF(F25=\"Да\",\"Да\",IF(F25=\"Нет\",\"Нет\",\"\")))","v":""},{"$f":"IF(C31=\"Да\",\"!!!  Укажите дату изменения статуса:\", \"\")","v":""}]
[]
[null,"6.10.7. Форма отношений с организацией в рамках выполнения проекта РНФ:"]
[]
[null,"  Трудовой договор",null,{"$f":"IF(C35=\"Да\",\"Форма договора:\",\"\")","v":""},null,{"$f":"IF(E35=\"\",\"\",IF(E35=\"не выбрано\",\"\",\"Укажите долю ставки:\"))","v":""},null,{"$f":"IF(E35=\"дистанционный трудовой договор\",\"Укажите населенный пункт, где расположено место работы:\",\"\")","v":""}]
[]
[null,"6.10.13. Сумма вознаграждения с начислениями в рамках трудового договора ДО изменения статуса 'Исследователь в возрасте до 39 лет' (включительно, на момент начала этапа), в том числе выплаты в месяц, когда изменился статус)",null,null,"тыс. рублей","!!!!   Сумму необходимо округлить до отрёх знаков после запятой!!!                             Пример:      302441 руб. следует указать как 302,441 тыс. руб.",null,null,{"$f":"IF(5*G3*$G$35>=(D37+D39)/12,\"ОК\",\"Значение выплат превышено\")","v":"ОК"}]
[]
[null,{"$f":"IF(F25=\"Да\",\"6.10.14. Сумма вознаграждения с начислениями  в  рамках трудового договора ПОСЛЕ  изменения статуса исполнителя 'Исследователь в возрасте до 39 лет'\",\"\")","v":""},null,null,{"$f":"IF(F25=\"Да\",\"тыс. рублей\",\"\")","v":""}]
[]
[]
[null,"  Гражданско-правовой договор",null,{"$f":"IF(C42=\"Да\",\"Укажите:\",\"\")","v":""},{"$f":"IF(C42=\"Да\",\"дата начала  действия  первого  гражданско-правового договора в отчетном периоде:\",\"\")","v":""}]
[]
[null,null,null,null,{"$f":"IF(C42=\"Да\",\"дата окончания  действия  последнего гражданско-правового договора в отчетном периоде: \",\"\")","v":""}]
[]
[null,null,null,null,{"$f":"IF(C42=\"Да\",\"периоды (даты) действия гражданско-правовых договоров:\",\"\")","v":""}]
[]
[null,null,null,null,{"$f":"IF(C42=\"Да\",\"расчет общего количества дней по всем ГПХ:\",\"\")","v":""},null,{"$f":"IF(C42=\"Да\",\"Дата начала ДГПХ\",\"\")","v":""},{"$f":"IF(C42=\"Да\",\"Дата окончания ДГПХ\",\"\")","v":""},{"$f":"IF(C42=\"Да\",\"Количество дней ДГПХ\",\"\")","v":""}]
[null,null,null,null,null,1,null,null,{"$f":"DATEDIF(G49,H49,\"D\")+IF(AND(G49=0,H49=0),0,1)","v":0}]
[null,null,null,null,null,2,null,null,{"$f":"DATEDIF(G50,H50,\"D\")+IF(AND(G50=0,H50=0),0,1)","v":0}]
[null,null,null,null,null,3,null,null,0]
[null,null,null,null,null,4,null,null,0]
[null,null,null,null,null,5,null,null,0]
[null,null,null,null,null,6,null,null,0]
[null,null,null,null,null,7,null,null,0]
[null,null,null,null,null,8,null,null,0]
[null,null,null,null,null,9,null,null,0]
[null,null,null,null,null,10,null,null,0]
[null,null,null,null,null,11,null,null,0]
[null,null,null,null,null,12,null,null,0]
[null,null,null,null,null,13,null,null,0]
[null,null,null,null,null,14,null,null,0]
[null,null,null,null,{"$f":"IF(C42=\"Да\",\"общее количество календарных дней, на которое заключены гражданско-правовые договоры в отчетном периоде:\",\"\")","v":""},null,{"$f":"SUM(I49:I62)","v":0}]
[]
[null,"6.10.13. Сумма вознаграждения с начислениями в рамках трудового договора ДО изменения статуса 'Исследователь в возрасте до 39 лет' (включительно, на момент начала этапа), в том числе выплаты в месяц, когда изменился статус)",null,null,"тыс. рублей","!!!   Сумму необходимо округлить до отрёх знаков после запятой !!!                             Пример:      302441 руб. следует указать как 302,441 тыс. руб.",null,null,{"$f":"IF((D65+D67)/G63<=15,\"ОК\",\"Значение выплат превышено\")","v":{"$error":"#DIV/0!"}}]
[]
[null,{"$f":"IF(F25=\"Да\",\"6.10.14. Сумма вознаграждения с начислениями  в  рамках трудового договора ПОСЛЕ  изменения статуса исполнителя 'Исследователь в возрасте до 39 лет'\",\"\")","v":""},null,null,{"$f":"IF(F25=\"Да\",\"тыс. рублей\",\"\")","v":""}]
[]
[]
[null,"6.10.8. Дата включения в состав научного коллектива (по приказу)"]
[]
[null,"6.10.9. Реквизиты документа о включении в состав научного коллектива*"]
[]
[null,"6.10.10. Дата исключения из состава научного коллектива                                                    (если исключения не было укажите прочерк   \" - \")",null,null,"(при наличии)"]
[]
[null,"6.10.11. Реквизиты документа об исключении из состава научного коллектива                                 (если исключения не было укажите прочерк  \" - \")",null,null,null,null,"(при наличии)"]
[]
[null,"6.10.12. Перечень дат и реквизитов ВСЕХ иных приказов об изменении состава научного коллектива за ВЕСЬ срок реализации проекта  (если иных приказов не было укажите прочерк  \" - \")",null,null,null,null,null,null,"(при наличии)"]
[]
[null,"6.10.13. Сумма вознаграждения с начислениями  ДО  изменения статуса (п. 6.10.6.) исполнителя, в том числе выплаты в месяц, когда изменился статус)",null,{"$f":"D37+D65","v":0},"тыс. рублей"]
[]
[null,{"$f":"IF(F25=\"Да\",\"6.10.14. Сумма вознаграждения с начислениями  ПОСЛЕ  изменения статуса (п. 6.10.6.) исполнителя\",\"\")","v":""},null,{"$f":"D39+D67","v":0},{"$f":"IF(F25=\"Да\",\"тыс. рублей\",\"\")","v":""}]
[null,null,{"$f":"IF(F26=\"Да\",\"студент\",IF(F28=\"Да\",\"аспирант\",IF(G30=\"Да\",\"ученый до 39 лет\",IF(G32=\"Да\",\"российский ученый\",IF(G33=\"Да\",\"иностранный ученый\",\"\")))))","v":""}]
[]
[]
[]
[]
[]
[]
[]
[]
[]
[]
[]
[]
[]
[]
[]
[]
[]
[]
[]
[]
[]
[]
[]
[]
[]
[]
[]
[]
[]
[]
[]
[]
[]
[]
[]
[]
[]
[]
[]
[]
[]
[]
[]
[]
[]
[]
[]
[]
[]
[]
[]
[null,null,null,"Таблицу под строкой не удалять и не менять !!!!"]
[]
[null,null,"D121",{"$f":"ROUND(D80+D82,3)","v":0},"Общая сумма выплат"]
[null,null,null,{"$f":"ROUND(IF(C25=\"Да\",SUM(D80:D82),0),3)","v":0},"До 39 лет  УЧЕТ статус Не менялся"]
[null,null,"D123",{"$f":"ROUND(IF(C31=\"Да\",D80,D138),3)","v":0},"До 39 лет  УЧЕТ статус ИЗМЕНИЛСЯ"]
[null,null,null,{"$f":"IF(C25=\"Да\",\"1\",\"0\")","v":"0"},"Иссл. До 39 лет 1-Да 0- Нет"]

{"sheet":"Исп.08","index":8,"n_rows":140,"n_cols":9,"rows_kept":140,"cut":false,"hidden":false,"merged":[[136,4,136,5],[137,4,137,5],[138,4,138,5],[139,4,139,5],[79,1,79,2],[79,5,79,7],[81,1,81,2],[81,5,81,7],[82,5,82,7],[73,1,73,2],[75,1,75,2],[75,3,75,5],[77,1,77,2],[77,3,77,7],[62,4,62,5],[62,6,62,8],[64,1,64,2],[64,5,64,7],[66,1,66,2],[66,5,66,7],[41,4,41,5],[30,3,30,4],[31,4,31,5],[32,1,32,9],[33,4,33,5],[34,8,34,9],[24,6,24,8],[36,1,36,2],[36,5,36,7],[38,1,38,2],[38,5,38,7],[71,1,71,2],[69,1,69,2],[0,1,0,8],[26,3,26,4],[28,3,28,4],[29,4,29,5],[17,4,17,5],[18,1,18,5],[20,3,20,4],[22,3,22,4],[24,3,24,4],[71,3,71,5],[43,4,43,5],[45,4,45,5],[45,6,45,8],[47,4,47,5]]}
[null,"!!!    В отчёте необходимо заполнить поля, подсвеченные желтым цветом"]
[]
[null,"6.10.1. ФИО члена научного коллектива",null,null,null,"Средняя ЗП по региону",{"$f":"Исп.01!G3","v":77},"т.р./мес."]
[]
[null,"В случае изменения в отчетный период фамилии, имени и/или отчества члена научного коллектива укажите ФИО до изменения: "]
[]
[null,"Руководитель проекта"]
[]
[null,"Основной исполнитель проекта"]
[]
[null,"6.10.2. Число, месяц и год рождения",null,{"$f":"INT(YEARFRAC(C11,TODAY(),1))","v":125},"Возраст (Годы)"]
[]
[null,"6.10.3. Должность   (при наличии трудового договора с организацией)"]
[]
[null,"6.10.4. Ученая степень   (на дату представления отчета)"]
[]
[null,"6.10.5. Являлся на момент подписания соглашения работником организации:"]
[]
[null,"6.10.6.  Статус исполнителя:"]
[null,null,null,null,null,"Изм. Статуса"]
[null,"  студент очной формы обучения   ",null,{"$f":"IF(C21=\"Да\",\"Статус изменился в отчетном периоде?:\", \"\")","v":""}]
[]
[null,"  аспирант (интерн, ординатор, адъюнкт) очной формы обучения",null,{"$f":"IF(C23=\"Да\",\"Статус изменился в отчетном периоде?:\", \"\")","v":""}]
[]
[null,"  исследователь в возрасте до 39 лет (включительно, на момент начала этапа) ",null,{"$f":"IF(C25=\"Да\",\"Статус изменился в отчетном периоде?:\", \"\")","v":""},null,null,{"$f":"IF(D11=40,\"!!!  Внимание!  Исполнителю 40 лет - статус мог измениться\",\"\")","v":""}]
[]
[null,"  российский ученый  ",null,{"$f":"IF(C27=\"Да\",\"Статус изменился в отчетном периоде?:\", \"\")","v":""}]
[]
[null,"  иностранный ученый ",null,{"$f":"IF(C29=\"Да\",\"Статус изменился в отчетном периоде?:\", \"\")","v":""}]
[]
[null,"Статус  «исследователь в возрасте до 39 лет (включительно)» изменился  в отчетном периоде:",{"$f":"IF(C25=\"Нет\",\"Нет\",IF(F25=\"Да\",\"Да\",IF(F25=\"Нет\",\"Нет\",\"\")))","v":""},{"$f":"IF(C31=\"Да\",\"!!!  Укажите дату изменения статуса:\", \"\")","v":""}]
[]
[null,"6.10.7. Форма отношений с организацией в рамках выполнения проекта РНФ:"]
[]
[null,"  Трудовой договор",null,{"$f":"IF(C35=\"Да\",\"Форма договора:\",\"\")","v":""},null,{"$f":"IF(E35=\"\",\"\",IF(E35=\"не выбрано\",\"\",\"Укажите долю ставки:\"))","v":""},null,{"$f":"IF(E35=\"дистанционный трудовой договор\",\"Укажите населенный пункт, где расположено место работы:\",\"\")","v":""}]
[]
[null,"6.10.13. Сумма вознаграждения с начислениями в рамках трудового договора ДО изменения статуса 'Исследователь в возрасте до 39 лет' (включительно, на момент начала этапа), в том числе выплаты в месяц, когда изменился статус)",null,null,"тыс. рублей","!!!!   Сумму необходимо округлить до отрёх знаков после запятой!!!                             Пример:      302441 руб. следует указать как 302,441 тыс. руб.",null,null,{"$f":"IF(5*G3*$G$35>=(D37+D39)/12,\"ОК\",\"Значение выплат превышено\")","v":"ОК"}]
[]
[null,{"$f":"IF(F25=\"Да\",\"6.10.14. Сумма вознаграждения с начислениями  в  рамках трудового договора ПОСЛЕ  изменения статуса исполнителя 'Исследователь в возрасте до 39 лет'\",\"\")","v":""},null,null,{"$f":"IF(F25=\"Да\",\"тыс. рублей\",\"\")","v":""}]
[]
[]
[null,"  Гражданско-правовой договор",null,{"$f":"IF(C42=\"Да\",\"Укажите:\",\"\")","v":""},{"$f":"IF(C42=\"Да\",\"дата начала  действия  первого  гражданско-правового договора в отчетном периоде:\",\"\")","v":""}]
[]
[null,null,null,null,{"$f":"IF(C42=\"Да\",\"дата окончания  действия  последнего гражданско-правового договора в отчетном периоде: \",\"\")","v":""}]
[]
[null,null,null,null,{"$f":"IF(C42=\"Да\",\"периоды (даты) действия гражданско-правовых договоров:\",\"\")","v":""}]
[]
[null,null,null,null,{"$f":"IF(C42=\"Да\",\"расчет общего количества дней по всем ГПХ:\",\"\")","v":""},null,{"$f":"IF(C42=\"Да\",\"Дата начала ДГПХ\",\"\")","v":""},{"$f":"IF(C42=\"Да\",\"Дата окончания ДГПХ\",\"\")","v":""},{"$f":"IF(C42=\"Да\",\"Количество дней ДГПХ\",\"\")","v":""}]
[null,null,null,null,null,1,null,null,{"$f":"DATEDIF(G49,H49,\"D\")+IF(AND(G49=0,H49=0),0,1)","v":0}]
[null,null,null,null,null,2,null,null,{"$f":"DATEDIF(G50,H50,\"D\")+IF(AND(G50=0,H50=0),0,1)","v":0}]
[null,null,null,null,null,3,null,null,0]
[null,null,null,null,null,4,null,null,0]
[null,null,null,null,null,5,null,null,0]
[null,null,null,null,null,6,null,null,0]
[null,null,null,null,null,7,null,null,0]
[null,null,null,null,null,8,null,null,0]
[null,null,null,null,null,9,null,null,0]
[null,null,null,null,null,10,null,null,0]
[null,null,null,null,null,11,null,null,0]
[null,null,null,null,null,12,null,null,0]
[null,null,null,null,null,13,null,null,0]
[null,null,null,null,null,14,null,null,0]
[null,null,null,null,{"$f":"IF(C42=\"Да\",\"общее количество календарных дней, на которое заключены гражданско-правовые договоры в отчетном периоде:\",\"\")","v":""},null,{"$f":"SUM(I49:I62)","v":0}]
[]
[null,"6.10.13. Сумма вознаграждения с начислениями в рамках трудового договора ДО изменения статуса 'Исследователь в возрасте до 39 лет' (включительно, на момент начала этапа), в том числе выплаты в месяц, когда изменился статус)",null,null,"тыс. рублей","!!!   Сумму необходимо округлить до отрёх знаков после запятой !!!                             Пример:      302441 руб. следует указать как 302,441 тыс. руб.",null,null,{"$f":"IF((D65+D67)/G63<=15,\"ОК\",\"Значение выплат превышено\")","v":{"$error":"#DIV/0!"}}]
[]
[null,{"$f":"IF(F25=\"Да\",\"6.10.14. Сумма вознаграждения с начислениями  в  рамках трудового договора ПОСЛЕ  изменения статуса исполнителя 'Исследователь в возрасте до 39 лет'\",\"\")","v":""},null,null,{"$f":"IF(F25=\"Да\",\"тыс. рублей\",\"\")","v":""}]
[]
[]
[null,"6.10.8. Дата включения в состав научного коллектива (по приказу)"]
[]
[null,"6.10.9. Реквизиты документа о включении в состав научного коллектива*"]
[]
[null,"6.10.10. Дата исключения из состава научного коллектива                                                    (если исключения не было укажите прочерк   \" - \")",null,null,"(при наличии)"]
[]
[null,"6.10.11. Реквизиты документа об исключении из состава научного коллектива                                 (если исключения не было укажите прочерк  \" - \")",null,null,null,null,"(при наличии)"]
[]
[null,"6.10.12. Перечень дат и реквизитов ВСЕХ иных приказов об изменении состава научного коллектива за ВЕСЬ срок реализации проекта  (если иных приказов не было укажите прочерк  \" - \")",null,null,null,null,null,null,"(при наличии)"]
[]
[null,"6.10.13. Сумма вознаграждения с начислениями  ДО  изменения статуса (п. 6.10.6.) исполнителя, в том числе выплаты в месяц, когда изменился статус)",null,{"$f":"D37+D65","v":0},"тыс. рублей"]
[]
[null,{"$f":"IF(F25=\"Да\",\"6.10.14. Сумма вознаграждения с начислениями  ПОСЛЕ  изменения статуса (п. 6.10.6.) исполнителя\",\"\")","v":""},null,{"$f":"D39+D67","v":0},{"$f":"IF(F25=\"Да\",\"тыс. рублей\",\"\")","v":""}]
[null,null,{"$f":"IF(F26=\"Да\",\"студент\",IF(F28=\"Да\",\"аспирант\",IF(G30=\"Да\",\"ученый до 39 лет\",IF(G32=\"Да\",\"российский ученый\",IF(G33=\"Да\",\"иностранный ученый\",\"\")))))","v":""}]
[]
[]
[]
[]
[]
[]
[]
[]
[]
[]
[]
[]
[]
[]
[]
[]
[]
[]
[]
[]
[]
[]
[]
[]
[]
[]
[]
[]
[]
[]
[]
[]
[]
[]
[]
[]
[]
[]
[]
[]
[]
[]
[]
[]
[]
[]
[]
[]
[]
[]
[]
[null,null,null,"Таблицу под строкой не удалять и не менять !!!!"]
[]
[null,null,"D121",{"$f":"ROUND(D80+D82,3)","v":0},"Общая сумма выплат"]
[null,null,null,{"$f":"ROUND(IF(C25=\"Да\",SUM(D80:D82),0),3)","v":0},"До 39 лет  УЧЕТ статус Не менялся"]
[null,null,"D123",{"$f":"ROUND(IF(C31=\"Да\",D80,D138),3)","v":0},"До 39 лет  УЧЕТ статус ИЗМЕНИЛСЯ"]
[null,null,null,{"$f":"IF(C25=\"Да\",\"1\",\"0\")","v":"0"},"Иссл. До 39 лет 1-Да 0- Нет"]

{"sheet":"Исп.09","index":9,"n_rows":140,"n_cols":9,"rows_kept":140,"cut":false,"hidden":false,"merged":[[136,4,136,5],[137,4,137,5],[138,4,138,5],[139,4,139,5],[79,1,79,2],[79,5,79,7],[81,1,81,2],[81,5,81,7],[82,5,82,7],[73,1,73,2],[75,1,75,2],[75,3,75,5],[77,1,77,2],[77,3,77,7],[62,4,62,5],[62,6,62,8],[64,1,64,2],[64,5,64,7],[66,1,66,2],[66,5,66,7],[41,4,41,5],[30,3,30,4],[31,4,31,5],[32,1,32,9],[33,4,33,5],[34,8,34,9],[24,6,24,8],[36,1,36,2],[36,5,36,7],[38,1,38,2],[38,5,38,7],[71,1,71,2],[69,1,69,2],[0,1,0,8],[26,3,26,4],[28,3,28,4],[29,4,29,5],[17,4,17,5],[18,1,18,5],[20,3,20,4],[22,3,22,4],[24,3,24,4],[71,3,71,5],[43,4,43,5],[45,4,45,5],[45,6,45,8],[47,4,47,5]]}
[null,"!!!    В отчёте необходимо заполнить поля, подсвеченные желтым цветом"]
[]
[null,"6.10.1. ФИО члена научного коллектива",null,null,null,"Средняя ЗП по региону",{"$f":"Исп.01!G3","v":77},"т.р./мес."]
[]
[null,"В случае изменения в отчетный период фамилии, имени и/или отчества члена научного коллектива укажите ФИО до изменения: "]
[]
[null,"Руководитель проекта"]
[]
[null,"Основной исполнитель проекта"]
[]
[null,"6.10.2. Число, месяц и год рождения",null,{"$f":"INT(YEARFRAC(C11,TODAY(),1))","v":125},"Возраст (Годы)"]
[]
[null,"6.10.3. Должность   (при наличии трудового договора с организацией)"]
[]
[null,"6.10.4. Ученая степень   (на дату представления отчета)"]
[]
[null,"6.10.5. Являлся на момент подписания соглашения работником организации:"]
[]
[null,"6.10.6.  Статус исполнителя:"]
[null,null,null,null,null,"Изм. Статуса"]
[null,"  студент очной формы обучения   ",null,{"$f":"IF(C21=\"Да\",\"Статус изменился в отчетном периоде?:\", \"\")","v":""}]
[]
[null,"  аспирант (интерн, ординатор, адъюнкт) очной формы обучения",null,{"$f":"IF(C23=\"Да\",\"Статус изменился в отчетном периоде?:\", \"\")","v":""}]
[]
[null,"  исследователь в возрасте до 39 лет (включительно, на момент начала этапа) ",null,{"$f":"IF(C25=\"Да\",\"Статус изменился в отчетном периоде?:\", \"\")","v":""},null,null,{"$f":"IF(D11=40,\"!!!  Внимание!  Исполнителю 40 лет - статус мог измениться\",\"\")","v":""}]
[]
[null,"  российский ученый  ",null,{"$f":"IF(C27=\"Да\",\"Статус изменился в отчетном периоде?:\", \"\")","v":""}]
[]
[null,"  иностранный ученый ",null,{"$f":"IF(C29=\"Да\",\"Статус изменился в отчетном периоде?:\", \"\")","v":""}]
[]
[null,"Статус  «исследователь в возрасте до 39 лет (включительно)» изменился  в отчетном периоде:",{"$f":"IF(C25=\"Нет\",\"Нет\",IF(F25=\"Да\",\"Да\",IF(F25=\"Нет\",\"Нет\",\"\")))","v":""},{"$f":"IF(C31=\"Да\",\"!!!  Укажите дату изменения статуса:\", \"\")","v":""}]
[]
[null,"6.10.7. Форма отношений с организацией в рамках выполнения проекта РНФ:"]
[]
[null,"  Трудовой договор",null,{"$f":"IF(C35=\"Да\",\"Форма договора:\",\"\")","v":""},null,{"$f":"IF(E35=\"\",\"\",IF(E35=\"не выбрано\",\"\",\"Укажите долю ставки:\"))","v":""},null,{"$f":"IF(E35=\"дистанционный трудовой договор\",\"Укажите населенный пункт, где расположено место работы:\",\"\")","v":""}]
[]
[null,"6.10.13. Сумма вознаграждения с начислениями в рамках трудового договора ДО изменения статуса 'Исследователь в возрасте до 39 лет' (включительно, на момент начала этапа), в том числе выплаты в месяц, когда изменился статус)",null,null,"тыс. рублей","!!!!   Сумму необходимо округлить до отрёх знаков после запятой!!!                             Пример:      302441 руб. следует указать как 302,441 тыс. руб.",null,null,{"$f":"IF(5*G3*$G$35>=(D37+D39)/12,\"ОК\",\"Значение выплат превышено\")","v":"ОК"}]
[]
[null,{"$f":"IF(F25=\"Да\",\"6.10.14. Сумма вознаграждения с начислениями  в  рамках трудового договора ПОСЛЕ  изменения статуса исполнителя 'Исследователь в возрасте до 39 лет'\",\"\")","v":""},null,null,{"$f":"IF(F25=\"Да\",\"тыс. рублей\",\"\")","v":""}]
[]
[]
[null,"  Гражданско-правовой договор",null,{"$f":"IF(C42=\"Да\",\"Укажите:\",\"\")","v":""},{"$f":"IF(C42=\"Да\",\"дата начала  действия  первого  гражданско-правового договора в отчетном периоде:\",\"\")","v":""}]
[]
[null,null,null,null,{"$f":"IF(C42=\"Да\",\"дата окончания  действия  последнего гражданско-правового договора в отчетном периоде: \",\"\")","v":""}]
[]
[null,null,null,null,{"$f":"IF(C42=\"Да\",\"периоды (даты) действия гражданско-правовых договоров:\",\"\")","v":""}]
[]
[null,null,null,null,{"$f":"IF(C42=\"Да\",\"расчет общего количества дней по всем ГПХ:\",\"\")","v":""},null,{"$f":"IF(C42=\"Да\",\"Дата начала ДГПХ\",\"\")","v":""},{"$f":"IF(C42=\"Да\",\"Дата окончания ДГПХ\",\"\")","v":""},{"$f":"IF(C42=\"Да\",\"Количество дней ДГПХ\",\"\")","v":""}]
[null,null,null,null,null,1,null,null,{"$f":"DATEDIF(G49,H49,\"D\")+IF(AND(G49=0,H49=0),0,1)","v":0}]
[null,null,null,null,null,2,null,null,{"$f":"DATEDIF(G50,H50,\"D\")+IF(AND(G50=0,H50=0),0,1)","v":0}]
[null,null,null,null,null,3,null,null,0]
[null,null,null,null,null,4,null,null,0]
[null,null,null,null,null,5,null,null,0]
[null,null,null,null,null,6,null,null,0]
[null,null,null,null,null,7,null,null,0]
[null,null,null,null,null,8,null,null,0]
[null,null,null,null,null,9,null,null,0]
[null,null,null,null,null,10,null,null,0]
[null,null,null,null,null,11,null,null,0]
[null,null,null,null,null,12,null,null,0]
[null,null,null,null,null,13,null,null,0]
[null,null,null,null,null,14,null,null,0]
[null,null,null,null,{"$f":"IF(C42=\"Да\",\"общее количество календарных дней, на которое заключены гражданско-правовые договоры в отчетном периоде:\",\"\")","v":""},null,{"$f":"SUM(I49:I62)","v":0}]
[]
[null,"6.10.13. Сумма вознаграждения с начислениями в рамках трудового договора ДО изменения статуса 'Исследователь в возрасте до 39 лет' (включительно, на момент начала этапа), в том числе выплаты в месяц, когда изменился статус)",null,null,"тыс. рублей","!!!   Сумму необходимо округлить до отрёх знаков после запятой !!!                             Пример:      302441 руб. следует указать как 302,441 тыс. руб.",null,null,{"$f":"IF((D65+D67)/G63<=15,\"ОК\",\"Значение выплат превышено\")","v":{"$error":"#DIV/0!"}}]
[]
[null,{"$f":"IF(F25=\"Да\",\"6.10.14. Сумма вознаграждения с начислениями  в  рамках трудового договора ПОСЛЕ  изменения статуса исполнителя 'Исследователь в возрасте до 39 лет'\",\"\")","v":""},null,null,{"$f":"IF(F25=\"Да\",\"тыс. рублей\",\"\")","v":""}]
[]
[]
[null,"6.10.8. Дата включения в состав научного коллектива (по приказу)"]
[]
[null,"6.10.9. Реквизиты документа о включении в состав научного коллектива*"]
[]
[null,"6.10.10. Дата исключения из состава научного коллектива                                                    (если исключения не было укажите прочерк   \" - \")",null,null,"(при наличии)"]
[]
[null,"6.10.11. Реквизиты документа об исключении из состава научного коллектива                                 (если исключения не было укажите прочерк  \" - \")",null,null,null,null,"(при наличии)"]
[]
[null,"6.10.12. Перечень дат и реквизитов ВСЕХ иных приказов об изменении состава научного коллектива за ВЕСЬ срок реализации проекта  (если иных приказов не было укажите прочерк  \" - \")",null,null,null,null,null,null,"(при наличии)"]
[]
[null,"6.10.13. Сумма вознаграждения с начислениями  ДО  изменения статуса (п. 6.10.6.) исполнителя, в том числе выплаты в месяц, когда изменился статус)",null,{"$f":"D37+D65","v":0},"тыс. рублей"]
[]
[null,{"$f":"IF(F25=\"Да\",\"6.10.14. Сумма вознаграждения с начислениями  ПОСЛЕ  изменения статуса (п. 6.10.6.) исполнителя\",\"\")","v":""},null,{"$f":"D39+D67","v":0},{"$f":"IF(F25=\"Да\",\"тыс. рублей\",\"\")","v":""}]
[null,null,{"$f":"IF(F26=\"Да\",\"студент\",IF(F28=\"Да\",\"аспирант\",IF(G30=\"Да\",\"ученый до 39 лет\",IF(G32=\"Да\",\"российский ученый\",IF(G33=\"Да\",\"иностранный ученый\",\"\")))))","v":""}]
[]
[]
[]
[]
[]
[]
[]
[]
[]
[]
[]
[]
[]
[]
[]
[]
[]
[]
[]
[]
[]
[]
[]
[]
[]
[]
[]
[]
[]
[]
[]
[]
[]
[]
[]
[]
[]
[]
[]
[]
[]
[]
[]
[]
[]
[]
[]
[]
[]
[]
[]
[null,null,null,"Таблицу под строкой не удалять и не менять !!!!"]
[]
[null,null,"D121",{"$f":"ROUND(D80+D82,3)","v":0},"Общая сумма выплат"]
[null,null,null,{"$f":"ROUND(IF(C25=\"Да\",SUM(D80:D82),0),3)","v":0},"До 39 лет  УЧЕТ статус Не менялся"]
[null,null,"D123",{"$f":"ROUND(IF(C31=\"Да\",D80,D138),3)","v":0},"До 39 лет  УЧЕТ статус ИЗМЕНИЛСЯ"]
[null,null,null,{"$f":"IF(C25=\"Да\",\"1\",\"0\")","v":"0"},"Иссл. До 39 лет 1-Да 0- Нет"]

{"sheet":"Исп.10","index":10,"n_rows":140,"n_cols":9,"rows_kept":140,"cut":false,"hidden":false,"merged":[[136,4,136,5],[137,4,137,5],[138,4,138,5],[139,4,139,5],[79,1,79,2],[79,5,79,7],[81,1,81,2],[81,5,81,7],[82,5,82,7],[73,1,73,2],[75,1,75,2],[75,3,75,5],[77,1,77,2],[77,3,77,7],[62,4,62,5],[62,6,62,8],[64,1,64,2],[64,5,64,7],[66,1,66,2],[66,5,66,7],[41,4,41,5],[30,3,30,4],[31,4,31,5],[32,1,32,9],[33,4,33,5],[34,8,34,9],[24,6,24,8],[36,1,36,2],[36,5,36,7],[38,1,38,2],[38,5,38,7],[71,1,71,2],[69,1,69,2],[0,1,0,8],[26,3,26,4],[28,3,28,4],[29,4,29,5],[17,4,17,5],[18,1,18,5],[20,3,20,4],[22,3,22,4],[24,3,24,4],[71,3,71,5],[43,4,43,5],[45,4,45,5],[45,6,45,8],[47,4,47,5]]}
[null,"!!!    В отчёте необходимо заполнить поля, подсвеченные желтым цветом"]
[]
[null,"6.10.1. ФИО члена научного коллектива",null,null,null,"Средняя ЗП по региону",{"$f":"Исп.01!G3","v":77},"т.р./мес."]
[]
[null,"В случае изменения в отчетный период фамилии, имени и/или отчества члена научного коллектива укажите ФИО до изменения: "]
[]
[null,"Руководитель проекта"]
[]
[null,"Основной исполнитель проекта"]
[]
[null,"6.10.2. Число, месяц и год рождения",null,{"$f":"INT(YEARFRAC(C11,TODAY(),1))","v":125},"Возраст (Годы)"]
[]
[null,"6.10.3. Должность   (при наличии трудового договора с организацией)"]
[]
[null,"6.10.4. Ученая степень   (на дату представления отчета)"]
[]
[null,"6.10.5. Являлся на момент подписания соглашения работником организации:"]
[]
[null,"6.10.6.  Статус исполнителя:"]
[null,null,null,null,null,"Изм. Статуса"]
[null,"  студент очной формы обучения   ",null,{"$f":"IF(C21=\"Да\",\"Статус изменился в отчетном периоде?:\", \"\")","v":""}]
[]
[null,"  аспирант (интерн, ординатор, адъюнкт) очной формы обучения",null,{"$f":"IF(C23=\"Да\",\"Статус изменился в отчетном периоде?:\", \"\")","v":""}]
[]
[null,"  исследователь в возрасте до 39 лет (включительно, на момент начала этапа) ",null,{"$f":"IF(C25=\"Да\",\"Статус изменился в отчетном периоде?:\", \"\")","v":""},null,null,{"$f":"IF(D11=40,\"!!!  Внимание!  Исполнителю 40 лет - статус мог измениться\",\"\")","v":""}]
[]
[null,"  российский ученый  ",null,{"$f":"IF(C27=\"Да\",\"Статус изменился в отчетном периоде?:\", \"\")","v":""}]
[]
[null,"  иностранный ученый ",null,{"$f":"IF(C29=\"Да\",\"Статус изменился в отчетном периоде?:\", \"\")","v":""}]
[]
[null,"Статус  «исследователь в возрасте до 39 лет (включительно)» изменился  в отчетном периоде:",{"$f":"IF(C25=\"Нет\",\"Нет\",IF(F25=\"Да\",\"Да\",IF(F25=\"Нет\",\"Нет\",\"\")))","v":""},{"$f":"IF(C31=\"Да\",\"!!!  Укажите дату изменения статуса:\", \"\")","v":""}]
[]
[null,"6.10.7. Форма отношений с организацией в рамках выполнения проекта РНФ:"]
[]
[null,"  Трудовой договор",null,{"$f":"IF(C35=\"Да\",\"Форма договора:\",\"\")","v":""},null,{"$f":"IF(E35=\"\",\"\",IF(E35=\"не выбрано\",\"\",\"Укажите долю ставки:\"))","v":""},null,{"$f":"IF(E35=\"дистанционный трудовой договор\",\"Укажите населенный пункт, где расположено место работы:\",\"\")","v":""}]
[]
[null,"6.10.13. Сумма вознаграждения с начислениями в рамках трудового договора ДО изменения статуса 'Исследователь в возрасте до 39 лет' (включительно, на момент начала этапа), в том числе выплаты в месяц, когда изменился статус)",null,null,"тыс. рублей","!!!!   Сумму необходимо округлить до отрёх знаков после запятой!!!                             Пример:      302441 руб. следует указать как 302,441 тыс. руб.",null,null,{"$f":"IF(5*G3*$G$35>=(D37+D39)/12,\"ОК\",\"Значение выплат превышено\")","v":"ОК"}]
[]
[null,{"$f":"IF(F25=\"Да\",\"6.10.14. Сумма вознаграждения с начислениями  в  рамках трудового договора ПОСЛЕ  изменения статуса исполнителя 'Исследователь в возрасте до 39 лет'\",\"\")","v":""},null,null,{"$f":"IF(F25=\"Да\",\"тыс. рублей\",\"\")","v":""}]
[]
[]
[null,"  Гражданско-правовой договор",null,{"$f":"IF(C42=\"Да\",\"Укажите:\",\"\")","v":""},{"$f":"IF(C42=\"Да\",\"дата начала  действия  первого  гражданско-правового договора в отчетном периоде:\",\"\")","v":""}]
[]
[null,null,null,null,{"$f":"IF(C42=\"Да\",\"дата окончания  действия  последнего гражданско-правового договора в отчетном периоде: \",\"\")","v":""}]
[]
[null,null,null,null,{"$f":"IF(C42=\"Да\",\"периоды (даты) действия гражданско-правовых договоров:\",\"\")","v":""}]
[]
[null,null,null,null,{"$f":"IF(C42=\"Да\",\"расчет общего количества дней по всем ГПХ:\",\"\")","v":""},null,{"$f":"IF(C42=\"Да\",\"Дата начала ДГПХ\",\"\")","v":""},{"$f":"IF(C42=\"Да\",\"Дата окончания ДГПХ\",\"\")","v":""},{"$f":"IF(C42=\"Да\",\"Количество дней ДГПХ\",\"\")","v":""}]
[null,null,null,null,null,1,null,null,{"$f":"DATEDIF(G49,H49,\"D\")+IF(AND(G49=0,H49=0),0,1)","v":0}]
[null,null,null,null,null,2,null,null,{"$f":"DATEDIF(G50,H50,\"D\")+IF(AND(G50=0,H50=0),0,1)","v":0}]
[null,null,null,null,null,3,null,null,0]
[null,null,null,null,null,4,null,null,0]
[null,null,null,null,null,5,null,null,0]
[null,null,null,null,null,6,null,null,0]
[null,null,null,null,null,7,null,null,0]
[null,null,null,null,null,8,null,null,0]
[null,null,null,null,null,9,null,null,0]
[null,null,null,null,null,10,null,null,0]
[null,null,null,null,null,11,null,null,0]
[null,null,null,null,null,12,null,null,0]
[null,null,null,null,null,13,null,null,0]
[null,null,null,null,null,14,null,null,0]
[null,null,null,null,{"$f":"IF(C42=\"Да\",\"общее количество календарных дней, на которое заключены гражданско-правовые договоры в отчетном периоде:\",\"\")","v":""},null,{"$f":"SUM(I49:I62)","v":0}]
[]
[null,"6.10.13. Сумма вознаграждения с начислениями в рамках трудового договора ДО изменения статуса 'Исследователь в возрасте до 39 лет' (включительно, на момент начала этапа), в том числе выплаты в месяц, когда изменился статус)",null,null,"тыс. рублей","!!!   Сумму необходимо округлить до отрёх знаков после запятой !!!                             Пример:      302441 руб. следует указать как 302,441 тыс. руб.",null,null,{"$f":"IF((D65+D67)/G63<=15,\"ОК\",\"Значение выплат превышено\")","v":{"$error":"#DIV/0!"}}]
[]
[null,{"$f":"IF(F25=\"Да\",\"6.10.14. Сумма вознаграждения с начислениями  в  рамках трудового договора ПОСЛЕ  изменения статуса исполнителя 'Исследователь в возрасте до 39 лет'\",\"\")","v":""},null,null,{"$f":"IF(F25=\"Да\",\"тыс. рублей\",\"\")","v":""}]
[]
[]
[null,"6.10.8. Дата включения в состав научного коллектива (по приказу)"]
[]
[null,"6.10.9. Реквизиты документа о включении в состав научного коллектива*"]
[]
[null,"6.10.10. Дата исключения из состава научного коллектива                                                    (если исключения не было укажите прочерк   \" - \")",null,null,"(при наличии)"]
[]
[null,"6.10.11. Реквизиты документа об исключении из состава научного коллектива                                 (если исключения не было укажите прочерк  \" - \")",null,null,null,null,"(при наличии)"]
[]
[null,"6.10.12. Перечень дат и реквизитов ВСЕХ иных приказов об изменении состава научного коллектива за ВЕСЬ срок реализации проекта  (если иных приказов не было укажите прочерк  \" - \")",null,null,null,null,null,null,"(при наличии)"]
[]
[null,"6.10.13. Сумма вознаграждения с начислениями  ДО  изменения статуса (п. 6.10.6.) исполнителя, в том числе выплаты в месяц, когда изменился статус)",null,{"$f":"D37+D65","v":0},"тыс. рублей"]
[]
[null,{"$f":"IF(F25=\"Да\",\"6.10.14. Сумма вознаграждения с начислениями  ПОСЛЕ  изменения статуса (п. 6.10.6.) исполнителя\",\"\")","v":""},null,{"$f":"D39+D67","v":0},{"$f":"IF(F25=\"Да\",\"тыс. рублей\",\"\")","v":""}]
[null,null,{"$f":"IF(F26=\"Да\",\"студент\",IF(F28=\"Да\",\"аспирант\",IF(G30=\"Да\",\"ученый до 39 лет\",IF(G32=\"Да\",\"российский ученый\",IF(G33=\"Да\",\"иностранный ученый\",\"\")))))","v":""}]
[]
[]
[]
[]
[]
[]
[]
[]
[]
[]
[]
[]
[]
[]
[]
[]
[]
[]
[]
[]
[]
[]
[]
[]
[]
[]
[]
[]
[]
[]
[]
[]
[]
[]
[]
[]
[]
[]
[]
[]
[]
[]
[]
[]
[]
[]
[]
[]
[]
[]
[]
[null,null,null,"Таблицу под строкой не удалять и не менять !!!!"]
[]
[null,null,"D121",{"$f":"ROUND(D80+D82,3)","v":0},"Общая сумма выплат"]
[null,null,null,{"$f":"ROUND(IF(C25=\"Да\",SUM(D80:D82),0),3)","v":0},"До 39 лет  УЧЕТ статус Не менялся"]
[null,null,"D123",{"$f":"ROUND(IF(C31=\"Да\",D80,D138),3)","v":0},"До 39 лет  УЧЕТ статус ИЗМЕНИЛСЯ"]
[null,null,null,{"$f":"IF(C25=\"Да\",\"1\",\"0\")","v":"0"},"Иссл. До 39 лет 1-Да 0- Нет"]

{"sheet":"Исп.11","index":11,"n_rows":140,"n_cols":9,"rows_kept":140,"cut":false,"hidden":false,"merged":[[136,4,136,5],[137,4,137,5],[138,4,138,5],[139,4,139,5],[79,1,79,2],[79,5,79,7],[81,1,81,2],[81,5,81,7],[82,5,82,7],[73,1,73,2],[75,1,75,2],[75,3,75,5],[77,1,77,2],[77,3,77,7],[62,4,62,5],[62,6,62,8],[64,1,64,2],[64,5,64,7],[66,1,66,2],[66,5,66,7],[41,4,41,5],[30,3,30,4],[31,4,31,5],[32,1,32,9],[33,4,33,5],[34,8,34,9],[24,6,24,8],[36,1,36,2],[36,5,36,7],[38,1,38,2],[38,5,38,7],[71,1,71,2],[69,1,69,2],[0,1,0,8],[26,3,26,4],[28,3,28,4],[29,4,29,5],[17,4,17,5],[18,1,18,5],[20,3,20,4],[22,3,22,4],[24,3,24,4],[71,3,71,5],[43,4,43,5],[45,4,45,5],[45,6,45,8],[47,4,47,5]]}
[null,"!!!    В отчёте необходимо заполнить поля, подсвеченные желтым цветом"]
[]
[null,"6.10.1. ФИО члена научного коллектива",null,null,null,"Средняя ЗП по региону",{"$f":"Исп.01!G3","v":77},"т.р./мес."]
[]
[null,"В случае изменения в отчетный период фамилии, имени и/или отчества члена научного коллектива укажите ФИО до изменения: "]
[]
[null,"Руководитель проекта"]
[]
[null,"Основной исполнитель проекта"]
[]
[null,"6.10.2. Число, месяц и год рождения",null,{"$f":"INT(YEARFRAC(C11,TODAY(),1))","v":125},"Возраст (Годы)"]
[]
[null,"6.10.3. Должность   (при наличии трудового договора с организацией)"]
[]
[null,"6.10.4. Ученая степень   (на дату представления отчета)"]
[]
[null,"6.10.5. Являлся на момент подписания соглашения работником организации:"]
[]
[null,"6.10.6.  Статус исполнителя:"]
[null,null,null,null,null,"Изм. Статуса"]
[null,"  студент очной формы обучения   ",null,{"$f":"IF(C21=\"Да\",\"Статус изменился в отчетном периоде?:\", \"\")","v":""}]
[]
[null,"  аспирант (интерн, ординатор, адъюнкт) очной формы обучения",null,{"$f":"IF(C23=\"Да\",\"Статус изменился в отчетном периоде?:\", \"\")","v":""}]
[]
[null,"  исследователь в возрасте до 39 лет (включительно, на момент начала этапа) ",null,{"$f":"IF(C25=\"Да\",\"Статус изменился в отчетном периоде?:\", \"\")","v":""},null,null,{"$f":"IF(D11=40,\"!!!  Внимание!  Исполнителю 40 лет - статус мог измениться\",\"\")","v":""}]
[]
[null,"  российский ученый  ",null,{"$f":"IF(C27=\"Да\",\"Статус изменился в отчетном периоде?:\", \"\")","v":""}]
[]
[null,"  иностранный ученый ",null,{"$f":"IF(C29=\"Да\",\"Статус изменился в отчетном периоде?:\", \"\")","v":""}]
[]
[null,"Статус  «исследователь в возрасте до 39 лет (включительно)» изменился  в отчетном периоде:",{"$f":"IF(C25=\"Нет\",\"Нет\",IF(F25=\"Да\",\"Да\",IF(F25=\"Нет\",\"Нет\",\"\")))","v":""},{"$f":"IF(C31=\"Да\",\"!!!  Укажите дату изменения статуса:\", \"\")","v":""}]
[]
[null,"6.10.7. Форма отношений с организацией в рамках выполнения проекта РНФ:"]
[]
[null,"  Трудовой договор",null,{"$f":"IF(C35=\"Да\",\"Форма договора:\",\"\")","v":""},null,{"$f":"IF(E35=\"\",\"\",IF(E35=\"не выбрано\",\"\",\"Укажите долю ставки:\"))","v":""},null,{"$f":"IF(E35=\"дистанционный трудовой договор\",\"Укажите населенный пункт, где расположено место работы:\",\"\")","v":""}]
[]
[null,"6.10.13. Сумма вознаграждения с начислениями в рамках трудового договора ДО изменения статуса 'Исследователь в возрасте до 39 лет' (включительно, на момент начала этапа), в том числе выплаты в месяц, когда изменился статус)",null,null,"тыс. рублей","!!!!   Сумму необходимо округлить до отрёх знаков после запятой!!!                             Пример:      302441 руб. следует указать как 302,441 тыс. руб.",null,null,{"$f":"IF(5*G3*$G$35>=(D37+D39)/12,\"ОК\",\"Значение выплат превышено\")","v":"ОК"}]
[]
[null,{"$f":"IF(F25=\"Да\",\"6.10.14. Сумма вознаграждения с начислениями  в  рамках трудового договора ПОСЛЕ  изменения статуса исполнителя 'Исследователь в возрасте до 39 лет'\",\"\")","v":""},null,null,{"$f":"IF(F25=\"Да\",\"тыс. рублей\",\"\")","v":""}]
[]
[]
[null,"  Гражданско-правовой договор",null,{"$f":"IF(C42=\"Да\",\"Укажите:\",\"\")","v":""},{"$f":"IF(C42=\"Да\",\"дата начала  действия  первого  гражданско-правового договора в отчетном периоде:\",\"\")","v":""}]
[]
[null,null,null,null,{"$f":"IF(C42=\"Да\",\"дата окончания  действия  последнего гражданско-правового договора в отчетном периоде: \",\"\")","v":""}]
[]
[null,null,null,null,{"$f":"IF(C42=\"Да\",\"периоды (даты) действия гражданско-правовых договоров:\",\"\")","v":""}]
[]
[null,null,null,null,{"$f":"IF(C42=\"Да\",\"расчет общего количества дней по всем ГПХ:\",\"\")","v":""},null,{"$f":"IF(C42=\"Да\",\"Дата начала ДГПХ\",\"\")","v":""},{"$f":"IF(C42=\"Да\",\"Дата окончания ДГПХ\",\"\")","v":""},{"$f":"IF(C42=\"Да\",\"Количество дней ДГПХ\",\"\")","v":""}]
[null,null,null,null,null,1,null,null,{"$f":"DATEDIF(G49,H49,\"D\")+IF(AND(G49=0,H49=0),0,1)","v":0}]
[null,null,null,null,null,2,null,null,{"$f":"DATEDIF(G50,H50,\"D\")+IF(AND(G50=0,H50=0),0,1)","v":0}]
[null,null,null,null,null,3,null,null,0]
[null,null,null,null,null,4,null,null,0]
[null,null,null,null,null,5,null,null,0]
[null,null,null,null,null,6,null,null,0]
[null,null,null,null,null,7,null,null,0]
[null,null,null,null,null,8,null,null,0]
[null,null,null,null,null,9,null,null,0]
[null,null,null,null,null,10,null,null,0]
[null,null,null,null,null,11,null,null,0]
[null,null,null,null,null,12,null,null,0]
[null,null,null,null,null,13,null,null,0]
[null,null,null,null,null,14,null,null,0]
[null,null,null,null,{"$f":"IF(C42=\"Да\",\"общее количество календарных дней, на которое заключены гражданско-правовые договоры в отчетном периоде:\",\"\")","v":""},null,{"$f":"SUM(I49:I62)","v":0}]
[]
[null,"6.10.13. Сумма вознаграждения с начислениями в рамках трудового договора ДО изменения статуса 'Исследователь в возрасте до 39 лет' (включительно, на момент начала этапа), в том числе выплаты в месяц, когда изменился статус)",null,null,"тыс. рублей","!!!   Сумму необходимо округлить до отрёх знаков после запятой !!!                             Пример:      302441 руб. следует указать как 302,441 тыс. руб.",null,null,{"$f":"IF((D65+D67)/G63<=15,\"ОК\",\"Значение выплат превышено\")","v":{"$error":"#DIV/0!"}}]
[]
[null,{"$f":"IF(F25=\"Да\",\"6.10.14. Сумма вознаграждения с начислениями  в  рамках трудового договора ПОСЛЕ  изменения статуса исполнителя 'Исследователь в возрасте до 39 лет'\",\"\")","v":""},null,null,{"$f":"IF(F25=\"Да\",\"тыс. рублей\",\"\")","v":""}]
[]
[]
[null,"6.10.8. Дата включения в состав научного коллектива (по приказу)"]
[]
[null,"6.10.9. Реквизиты документа о включении в состав научного коллектива*"]
[]
[null,"6.10.10. Дата исключения из состава научного коллектива                                                    (если исключения не было укажите прочерк   \" - \")",null,null,"(при наличии)"]
[]
[null,"6.10.11. Реквизиты документа об исключении из состава научного коллектива                                 (если исключения не было укажите прочерк  \" - \")",null,null,null,null,"(при наличии)"]
[]
[null,"6.10.12. Перечень дат и реквизитов ВСЕХ иных приказов об изменении состава научного коллектива за ВЕСЬ срок реализации проекта  (если иных приказов не было укажите прочерк  \" - \")",null,null,null,null,null,null,"(при наличии)"]
[]
[null,"6.10.13. Сумма вознаграждения с начислениями  ДО  изменения статуса (п. 6.10.6.) исполнителя, в том числе выплаты в месяц, когда изменился статус)",null,{"$f":"D37+D65","v":0},"тыс. рублей"]
[]
[null,{"$f":"IF(F25=\"Да\",\"6.10.14. Сумма вознаграждения с начислениями  ПОСЛЕ  изменения статуса (п. 6.10.6.) исполнителя\",\"\")","v":""},null,{"$f":"D39+D67","v":0},{"$f":"IF(F25=\"Да\",\"тыс. рублей\",\"\")","v":""}]
[null,null,{"$f":"IF(F26=\"Да\",\"студент\",IF(F28=\"Да\",\"аспирант\",IF(G30=\"Да\",\"ученый до 39 лет\",IF(G32=\"Да\",\"российский ученый\",IF(G33=\"Да\",\"иностранный ученый\",\"\")))))","v":""}]
[]
[]
[]
[]
[]
[]
[]
[]
[]
[]
[]
[]
[]
[]
[]
[]
[]
[]
[]
[]
[]
[]
[]
[]
[]
[]
[]
[]
[]
[]
[]
[]
[]
[]
[]
[]
[]
[]
[]
[]
[]
[]
[]
[]
[]
[]
[]
[]
[]
[]
[]
[null,null,null,"Таблицу под строкой не удалять и не менять !!!!"]
[]
[null,null,"D121",{"$f":"ROUND(D80+D82,3)","v":0},"Общая сумма выплат"]
[null,null,null,{"$f":"ROUND(IF(C25=\"Да\",SUM(D80:D82),0),3)","v":0},"До 39 лет  УЧЕТ статус Не менялся"]
[null,null,"D123",{"$f":"ROUND(IF(C31=\"Да\",D80,D138),3)","v":0},"До 39 лет  УЧЕТ статус ИЗМЕНИЛСЯ"]
[null,null,null,{"$f":"IF(C25=\"Да\",\"1\",\"0\")","v":"0"},"Иссл. До 39 лет 1-Да 0- Нет"]

{"sheet":"Исп.12","index":12,"n_rows":140,"n_cols":9,"rows_kept":140,"cut":false,"hidden":false,"merged":[[136,4,136,5],[137,4,137,5],[138,4,138,5],[139,4,139,5],[79,1,79,2],[79,5,79,7],[81,1,81,2],[81,5,81,7],[82,5,82,7],[73,1,73,2],[75,1,75,2],[75,3,75,5],[77,1,77,2],[77,3,77,7],[62,4,62,5],[62,6,62,8],[64,1,64,2],[64,5,64,7],[66,1,66,2],[66,5,66,7],[41,4,41,5],[30,3,30,4],[31,4,31,5],[32,1,32,9],[33,4,33,5],[34,8,34,9],[24,6,24,8],[36,1,36,2],[36,5,36,7],[38,1,38,2],[38,5,38,7],[71,1,71,2],[69,1,69,2],[0,1,0,8],[26,3,26,4],[28,3,28,4],[29,4,29,5],[17,4,17,5],[18,1,18,5],[20,3,20,4],[22,3,22,4],[24,3,24,4],[71,3,71,5],[43,4,43,5],[45,4,45,5],[45,6,45,8],[47,4,47,5]]}
[null,"!!!    В отчёте необходимо заполнить поля, подсвеченные желтым цветом"]
[]
[null,"6.10.1. ФИО члена научного коллектива",null,null,null,"Средняя ЗП по региону",{"$f":"Исп.01!G3","v":77},"т.р./мес."]
[]
[null,"В случае изменения в отчетный период фамилии, имени и/или отчества члена научного коллектива укажите ФИО до изменения: "]
[]
[null,"Руководитель проекта"]
[]
[null,"Основной исполнитель проекта"]
[]
[null,"6.10.2. Число, месяц и год рождения",null,{"$f":"INT(YEARFRAC(C11,TODAY(),1))","v":125},"Возраст (Годы)"]
[]
[null,"6.10.3. Должность   (при наличии трудового договора с организацией)"]
[]
[null,"6.10.4. Ученая степень   (на дату представления отчета)"]
[]
[null,"6.10.5. Являлся на момент подписания соглашения работником организации:"]
[]
[null,"6.10.6.  Статус исполнителя:"]
[null,null,null,null,null,"Изм. Статуса"]
[null,"  студент очной формы обучения   ",null,{"$f":"IF(C21=\"Да\",\"Статус изменился в отчетном периоде?:\", \"\")","v":""}]
[]
[null,"  аспирант (интерн, ординатор, адъюнкт) очной формы обучения",null,{"$f":"IF(C23=\"Да\",\"Статус изменился в отчетном периоде?:\", \"\")","v":""}]
[]
[null,"  исследователь в возрасте до 39 лет (включительно, на момент начала этапа) ",null,{"$f":"IF(C25=\"Да\",\"Статус изменился в отчетном периоде?:\", \"\")","v":""},null,null,{"$f":"IF(D11=40,\"!!!  Внимание!  Исполнителю 40 лет - статус мог измениться\",\"\")","v":""}]
[]
[null,"  российский ученый  ",null,{"$f":"IF(C27=\"Да\",\"Статус изменился в отчетном периоде?:\", \"\")","v":""}]
[]
[null,"  иностранный ученый ",null,{"$f":"IF(C29=\"Да\",\"Статус изменился в отчетном периоде?:\", \"\")","v":""}]
[]
[null,"Статус  «исследователь в возрасте до 39 лет (включительно)» изменился  в отчетном периоде:",{"$f":"IF(C25=\"Нет\",\"Нет\",IF(F25=\"Да\",\"Да\",IF(F25=\"Нет\",\"Нет\",\"\")))","v":""},{"$f":"IF(C31=\"Да\",\"!!!  Укажите дату изменения статуса:\", \"\")","v":""}]
[]
[null,"6.10.7. Форма отношений с организацией в рамках выполнения проекта РНФ:"]
[]
[null,"  Трудовой договор",null,{"$f":"IF(C35=\"Да\",\"Форма договора:\",\"\")","v":""},null,{"$f":"IF(E35=\"\",\"\",IF(E35=\"не выбрано\",\"\",\"Укажите долю ставки:\"))","v":""},null,{"$f":"IF(E35=\"дистанционный трудовой договор\",\"Укажите населенный пункт, где расположено место работы:\",\"\")","v":""}]
[]
[null,"6.10.13. Сумма вознаграждения с начислениями в рамках трудового договора ДО изменения статуса 'Исследователь в возрасте до 39 лет' (включительно, на момент начала этапа), в том числе выплаты в месяц, когда изменился статус)",null,null,"тыс. рублей","!!!!   Сумму необходимо округлить до отрёх знаков после запятой!!!                             Пример:      302441 руб. следует указать как 302,441 тыс. руб.",null,null,{"$f":"IF(5*G3*$G$35>=(D37+D39)/12,\"ОК\",\"Значение выплат превышено\")","v":"ОК"}]
[]
[null,{"$f":"IF(F25=\"Да\",\"6.10.14. Сумма вознаграждения с начислениями  в  рамках трудового договора ПОСЛЕ  изменения статуса исполнителя 'Исследователь в возрасте до 39 лет'\",\"\")","v":""},null,null,{"$f":"IF(F25=\"Да\",\"тыс. рублей\",\"\")","v":""}]
[]
[]
[null,"  Гражданско-правовой договор",null,{"$f":"IF(C42=\"Да\",\"Укажите:\",\"\")","v":""},{"$f":"IF(C42=\"Да\",\"дата начала  действия  первого  гражданско-правового договора в отчетном периоде:\",\"\")","v":""}]
[]
[null,null,null,null,{"$f":"IF(C42=\"Да\",\"дата окончания  действия  последнего гражданско-правового договора в отчетном периоде: \",\"\")","v":""}]
[]
[null,null,null,null,{"$f":"IF(C42=\"Да\",\"периоды (даты) действия гражданско-правовых договоров:\",\"\")","v":""}]
[]
[null,null,null,null,{"$f":"IF(C42=\"Да\",\"расчет общего количества дней по всем ГПХ:\",\"\")","v":""},null,{"$f":"IF(C42=\"Да\",\"Дата начала ДГПХ\",\"\")","v":""},{"$f":"IF(C42=\"Да\",\"Дата окончания ДГПХ\",\"\")","v":""},{"$f":"IF(C42=\"Да\",\"Количество дней ДГПХ\",\"\")","v":""}]
[null,null,null,null,null,1,null,null,{"$f":"DATEDIF(G49,H49,\"D\")+IF(AND(G49=0,H49=0),0,1)","v":0}]
[null,null,null,null,null,2,null,null,{"$f":"DATEDIF(G50,H50,\"D\")+IF(AND(G50=0,H50=0),0,1)","v":0}]
[null,null,null,null,null,3,null,null,0]
[null,null,null,null,null,4,null,null,0]
[null,null,null,null,null,5,null,null,0]
[null,null,null,null,null,6,null,null,0]
[null,null,null,null,null,7,null,null,0]
[null,null,null,null,null,8,null,null,0]
[null,null,null,null,null,9,null,null,0]
[null,null,null,null,null,10,null,null,0]
[null,null,null,null,null,11,null,null,0]
[null,null,null,null,null,12,null,null,0]
[null,null,null,null,null,13,null,null,0]
[null,null,null,null,null,14,null,null,0]
[null,null,null,null,{"$f":"IF(C42=\"Да\",\"общее количество календарных дней, на которое заключены гражданско-правовые договоры в отчетном периоде:\",\"\")","v":""},null,{"$f":"SUM(I49:I62)","v":0}]
[]
[null,"6.10.13. Сумма вознаграждения с начислениями в рамках трудового договора ДО изменения статуса 'Исследователь в возрасте до 39 лет' (включительно, на момент начала этапа), в том числе выплаты в месяц, когда изменился статус)",null,null,"тыс. рублей","!!!   Сумму необходимо округлить до отрёх знаков после запятой !!!                             Пример:      302441 руб. следует указать как 302,441 тыс. руб.",null,null,{"$f":"IF((D65+D67)/G63<=15,\"ОК\",\"Значение выплат превышено\")","v":{"$error":"#DIV/0!"}}]
[]
[null,{"$f":"IF(F25=\"Да\",\"6.10.14. Сумма вознаграждения с начислениями  в  рамках трудового договора ПОСЛЕ  изменения статуса исполнителя 'Исследователь в возрасте до 39 лет'\",\"\")","v":""},null,null,{"$f":"IF(F25=\"Да\",\"тыс. рублей\",\"\")","v":""}]
[]
[]
[null,"6.10.8. Дата включения в состав научного коллектива (по приказу)"]
[]
[null,"6.10.9. Реквизиты документа о включении в состав научного коллектива*"]
[]
[null,"6.10.10. Дата исключения из состава научного коллектива                                                    (если исключения не было укажите прочерк   \" - \")",null,null,"(при наличии)"]
[]
[null,"6.10.11. Реквизиты документа об исключении из состава научного коллектива                                 (если исключения не было укажите прочерк  \" - \")",null,null,null,null,"(при наличии)"]
[]
[null,"6.10.12. Перечень дат и реквизитов ВСЕХ иных приказов об изменении состава научного коллектива за ВЕСЬ срок реализации проекта  (если иных приказов не было укажите прочерк  \" - \")",null,null,null,null,null,null,"(при наличии)"]
[]
[null,"6.10.13. Сумма вознаграждения с начислениями  ДО  изменения статуса (п. 6.10.6.) исполнителя, в том числе выплаты в месяц, когда изменился статус)",null,{"$f":"D37+D65","v":0},"тыс. рублей"]
[]
[null,{"$f":"IF(F25=\"Да\",\"6.10.14. Сумма вознаграждения с начислениями  ПОСЛЕ  изменения статуса (п. 6.10.6.) исполнителя\",\"\")","v":""},null,{"$f":"D39+D67","v":0},{"$f":"IF(F25=\"Да\",\"тыс. рублей\",\"\")","v":""}]
[null,null,{"$f":"IF(F26=\"Да\",\"студент\",IF(F28=\"Да\",\"аспирант\",IF(G30=\"Да\",\"ученый до 39 лет\",IF(G32=\"Да\",\"российский ученый\",IF(G33=\"Да\",\"иностранный ученый\",\"\")))))","v":""}]
[]
[]
[]
[]
[]
[]
[]
[]
[]
[]
[]
[]
[]
[]
[]
[]
[]
[]
[]
[]
[]
[]
[]
[]
[]
[]
[]
[]
[]
[]
[]
[]
[]
[]
[]
[]
[]
[]
[]
[]
[]
[]
[]
[]
[]
[]
[]
[]
[]
[]
[]
[null,null,null,"Таблицу под строкой не удалять и не менять !!!!"]
[]
[null,null,"D121",{"$f":"ROUND(D80+D82,3)","v":0},"Общая сумма выплат"]
[null,null,null,{"$f":"ROUND(IF(C25=\"Да\",SUM(D80:D82),0),3)","v":0},"До 39 лет  УЧЕТ статус Не менялся"]
[null,null,"D123",{"$f":"ROUND(IF(C31=\"Да\",D80,D138),3)","v":0},"До 39 лет  УЧЕТ статус ИЗМЕНИЛСЯ"]
[null,null,null,{"$f":"IF(C25=\"Да\",\"1\",\"0\")","v":"0"},"Иссл. До 39 лет 1-Да 0- Нет"]

{"sheet":"Исп.13","index":13,"n_rows":140,"n_cols":9,"rows_kept":140,"cut":false,"hidden":false,"merged":[[136,4,136,5],[137,4,137,5],[138,4,138,5],[139,4,139,5],[79,1,79,2],[79,5,79,7],[81,1,81,2],[81,5,81,7],[82,5,82,7],[73,1,73,2],[75,1,75,2],[75,3,75,5],[77,1,77,2],[77,3,77,7],[62,4,62,5],[62,6,62,8],[64,1,64,2],[64,5,64,7],[66,1,66,2],[66,5,66,7],[41,4,41,5],[30,3,30,4],[31,4,31,5],[32,1,32,9],[33,4,33,5],[34,8,34,9],[24,6,24,8],[36,1,36,2],[36,5,36,7],[38,1,38,2],[38,5,38,7],[71,1,71,2],[69,1,69,2],[0,1,0,8],[26,3,26,4],[28,3,28,4],[29,4,29,5],[17,4,17,5],[18,1,18,5],[20,3,20,4],[22,3,22,4],[24,3,24,4],[71,3,71,5],[43,4,43,5],[45,4,45,5],[45,6,45,8],[47,4,47,5]]}
[null,"!!!    В отчёте необходимо заполнить поля, подсвеченные желтым цветом"]
[]
[null,"6.10.1. ФИО члена научного коллектива",null,null,null,"Средняя ЗП по региону",{"$f":"Исп.01!G3","v":77},"т.р./мес."]
[]
[null,"В случае изменения в отчетный период фамилии, имени и/или отчества члена научного коллектива укажите ФИО до изменения: "]
[]
[null,"Руководитель проекта"]
[]
[null,"Основной исполнитель проекта"]
[]
[null,"6.10.2. Число, месяц и год рождения",null,{"$f":"INT(YEARFRAC(C11,TODAY(),1))","v":125},"Возраст (Годы)"]
[]
[null,"6.10.3. Должность   (при наличии трудового договора с организацией)"]
[]
[null,"6.10.4. Ученая степень   (на дату представления отчета)"]
[]
[null,"6.10.5. Являлся на момент подписания соглашения работником организации:"]
[]
[null,"6.10.6.  Статус исполнителя:"]
[null,null,null,null,null,"Изм. Статуса"]
[null,"  студент очной формы обучения   ",null,{"$f":"IF(C21=\"Да\",\"Статус изменился в отчетном периоде?:\", \"\")","v":""}]
[]
[null,"  аспирант (интерн, ординатор, адъюнкт) очной формы обучения",null,{"$f":"IF(C23=\"Да\",\"Статус изменился в отчетном периоде?:\", \"\")","v":""}]
[]
[null,"  исследователь в возрасте до 39 лет (включительно, на момент начала этапа) ",null,{"$f":"IF(C25=\"Да\",\"Статус изменился в отчетном периоде?:\", \"\")","v":""},null,null,{"$f":"IF(D11=40,\"!!!  Внимание!  Исполнителю 40 лет - статус мог измениться\",\"\")","v":""}]
[]
[null,"  российский ученый  ",null,{"$f":"IF(C27=\"Да\",\"Статус изменился в отчетном периоде?:\", \"\")","v":""}]
[]
[null,"  иностранный ученый ",null,{"$f":"IF(C29=\"Да\",\"Статус изменился в отчетном периоде?:\", \"\")","v":""}]
[]
[null,"Статус  «исследователь в возрасте до 39 лет (включительно)» изменился  в отчетном периоде:",{"$f":"IF(C25=\"Нет\",\"Нет\",IF(F25=\"Да\",\"Да\",IF(F25=\"Нет\",\"Нет\",\"\")))","v":""},{"$f":"IF(C31=\"Да\",\"!!!  Укажите дату изменения статуса:\", \"\")","v":""}]
[]
[null,"6.10.7. Форма отношений с организацией в рамках выполнения проекта РНФ:"]
[]
[null,"  Трудовой договор",null,{"$f":"IF(C35=\"Да\",\"Форма договора:\",\"\")","v":""},null,{"$f":"IF(E35=\"\",\"\",IF(E35=\"не выбрано\",\"\",\"Укажите долю ставки:\"))","v":""},null,{"$f":"IF(E35=\"дистанционный трудовой договор\",\"Укажите населенный пункт, где расположено место работы:\",\"\")","v":""}]
[]
[null,"6.10.13. Сумма вознаграждения с начислениями в рамках трудового договора ДО изменения статуса 'Исследователь в возрасте до 39 лет' (включительно, на момент начала этапа), в том числе выплаты в месяц, когда изменился статус)",null,null,"тыс. рублей","!!!!   Сумму необходимо округлить до отрёх знаков после запятой!!!                             Пример:      302441 руб. следует указать как 302,441 тыс. руб.",null,null,{"$f":"IF(5*G3*$G$35>=(D37+D39)/12,\"ОК\",\"Значение выплат превышено\")","v":"ОК"}]
[]
[null,{"$f":"IF(F25=\"Да\",\"6.10.14. Сумма вознаграждения с начислениями  в  рамках трудового договора ПОСЛЕ  изменения статуса исполнителя 'Исследователь в возрасте до 39 лет'\",\"\")","v":""},null,null,{"$f":"IF(F25=\"Да\",\"тыс. рублей\",\"\")","v":""}]
[]
[]
[null,"  Гражданско-правовой договор",null,{"$f":"IF(C42=\"Да\",\"Укажите:\",\"\")","v":""},{"$f":"IF(C42=\"Да\",\"дата начала  действия  первого  гражданско-правового договора в отчетном периоде:\",\"\")","v":""}]
[]
[null,null,null,null,{"$f":"IF(C42=\"Да\",\"дата окончания  действия  последнего гражданско-правового договора в отчетном периоде: \",\"\")","v":""}]
[]
[null,null,null,null,{"$f":"IF(C42=\"Да\",\"периоды (даты) действия гражданско-правовых договоров:\",\"\")","v":""}]
[]
[null,null,null,null,{"$f":"IF(C42=\"Да\",\"расчет общего количества дней по всем ГПХ:\",\"\")","v":""},null,{"$f":"IF(C42=\"Да\",\"Дата начала ДГПХ\",\"\")","v":""},{"$f":"IF(C42=\"Да\",\"Дата окончания ДГПХ\",\"\")","v":""},{"$f":"IF(C42=\"Да\",\"Количество дней ДГПХ\",\"\")","v":""}]
[null,null,null,null,null,1,null,null,{"$f":"DATEDIF(G49,H49,\"D\")+IF(AND(G49=0,H49=0),0,1)","v":0}]
[null,null,null,null,null,2,null,null,{"$f":"DATEDIF(G50,H50,\"D\")+IF(AND(G50=0,H50=0),0,1)","v":0}]
[null,null,null,null,null,3,null,null,0]
[null,null,null,null,null,4,null,null,0]
[null,null,null,null,null,5,null,null,0]
[null,null,null,null,null,6,null,null,0]
[null,null,null,null,null,7,null,null,0]
[null,null,null,null,null,8,null,null,0]
[null,null,null,null,null,9,null,null,0]
[null,null,null,null,null,10,null,null,0]
[null,null,null,null,null,11,null,null,0]
[null,null,null,null,null,12,null,null,0]
[null,null,null,null,null,13,null,null,0]
[null,null,null,null,null,14,null,null,0]
[null,null,null,null,{"$f":"IF(C42=\"Да\",\"общее количество календарных дней, на которое заключены гражданско-правовые договоры в отчетном периоде:\",\"\")","v":""},null,{"$f":"SUM(I49:I62)","v":0}]
[]
[null,"6.10.13. Сумма вознаграждения с начислениями в рамках трудового договора ДО изменения статуса 'Исследователь в возрасте до 39 лет' (включительно, на момент начала этапа), в том числе выплаты в месяц, когда изменился статус)",null,null,"тыс. рублей","!!!   Сумму необходимо округлить до отрёх знаков после запятой !!!                             Пример:      302441 руб. следует указать как 302,441 тыс. руб.",null,null,{"$f":"IF((D65+D67)/G63<=15,\"ОК\",\"Значение выплат превышено\")","v":{"$error":"#DIV/0!"}}]
[]
[null,{"$f":"IF(F25=\"Да\",\"6.10.14. Сумма вознаграждения с начислениями  в  рамках трудового договора ПОСЛЕ  изменения статуса исполнителя 'Исследователь в возрасте до 39 лет'\",\"\")","v":""},null,null,{"$f":"IF(F25=\"Да\",\"тыс. рублей\",\"\")","v":""}]
[]
[]
[null,"6.10.8. Дата включения в состав научного коллектива (по приказу)"]
[]
[null,"6.10.9. Реквизиты документа о включении в состав научного коллектива*"]
[]
[null,"6.10.10. Дата исключения из состава научного коллектива                                                    (если исключения не было укажите прочерк   \" - \")",null,null,"(при наличии)"]
[]
[null,"6.10.11. Реквизиты документа об исключении из состава научного коллектива                                 (если исключения не было укажите прочерк  \" - \")",null,null,null,null,"(при наличии)"]
[]
[null,"6.10.12. Перечень дат и реквизитов ВСЕХ иных приказов об изменении состава научного коллектива за ВЕСЬ срок реализации проекта  (если иных приказов не было укажите прочерк  \" - \")",null,null,null,null,null,null,"(при наличии)"]
[]
[null,"6.10.13. Сумма вознаграждения с начислениями  ДО  изменения статуса (п. 6.10.6.) исполнителя, в том числе выплаты в месяц, когда изменился статус)",null,{"$f":"D37+D65","v":0},"тыс. рублей"]
[]
[null,{"$f":"IF(F25=\"Да\",\"6.10.14. Сумма вознаграждения с начислениями  ПОСЛЕ  изменения статуса (п. 6.10.6.) исполнителя\",\"\")","v":""},null,{"$f":"D39+D67","v":0},{"$f":"IF(F25=\"Да\",\"тыс. рублей\",\"\")","v":""}]
[null,null,{"$f":"IF(F26=\"Да\",\"студент\",IF(F28=\"Да\",\"аспирант\",IF(G30=\"Да\",\"ученый до 39 лет\",IF(G32=\"Да\",\"российский ученый\",IF(G33=\"Да\",\"иностранный ученый\",\"\")))))","v":""}]
[]
[]
[]
[]
[]
[]
[]
[]
[]
[]
[]
[]
[]
[]
[]
[]
[]
[]
[]
[]
[]
[]
[]
[]
[]
[]
[]
[]
[]
[]
[]
[]
[]
[]
[]
[]
[]
[]
[]
[]
[]
[]
[]
[]
[]
[]
[]
[]
[]
[]
[]
[null,null,null,"Таблицу под строкой не удалять и не менять !!!!"]
[]
[null,null,"D121",{"$f":"ROUND(D80+D82,3)","v":0},"Общая сумма выплат"]
[null,null,null,{"$f":"ROUND(IF(C25=\"Да\",SUM(D80:D82),0),3)","v":0},"До 39 лет  УЧЕТ статус Не менялся"]
[null,null,"D123",{"$f":"ROUND(IF(C31=\"Да\",D80,D138),3)","v":0},"До 39 лет  УЧЕТ статус ИЗМЕНИЛСЯ"]
[null,null,null,{"$f":"IF(C25=\"Да\",\"1\",\"0\")","v":"0"},"Иссл. До 39 лет 1-Да 0- Нет"]

{"sheet":"Исп.14","index":14,"n_rows":140,"n_cols":9,"rows_kept":140,"cut":false,"hidden":false,"merged":[[136,4,136,5],[137,4,137,5],[138,4,138,5],[139,4,139,5],[79,1,79,2],[79,5,79,7],[81,1,81,2],[81,5,81,7],[82,5,82,7],[73,1,73,2],[75,1,75,2],[75,3,75,5],[77,1,77,2],[77,3,77,7],[62,4,62,5],[62,6,62,8],[64,1,64,2],[64,5,64,7],[66,1,66,2],[66,5,66,7],[41,4,41,5],[30,3,30,4],[31,4,31,5],[32,1,32,9],[33,4,33,5],[34,8,34,9],[24,6,24,8],[36,1,36,2],[36,5,36,7],[38,1,38,2],[38,5,38,7],[71,1,71,2],[69,1,69,2],[0,1,0,8],[26,3,26,4],[28,3,28,4],[29,4,29,5],[17,4,17,5],[18,1,18,5],[20,3,20,4],[22,3,22,4],[24,3,24,4],[71,3,71,5],[43,4,43,5],[45,4,45,5],[45,6,45,8],[47,4,47,5]]}
[null,"!!!    В отчёте необходимо заполнить поля, подсвеченные желтым цветом"]
[]
[null,"6.10.1. ФИО члена научного коллектива",null,null,null,"Средняя ЗП по региону",{"$f":"Исп.01!G3","v":77},"т.р./мес."]
[]
[null,"В случае изменения в отчетный период фамилии, имени и/или отчества члена научного коллектива укажите ФИО до изменения: "]
[]
[null,"Руководитель проекта"]
[]
[null,"Основной исполнитель проекта"]
[]
[null,"6.10.2. Число, месяц и год рождения",null,{"$f":"INT(YEARFRAC(C11,TODAY(),1))","v":125},"Возраст (Годы)"]
[]
[null,"6.10.3. Должность   (при наличии трудового договора с организацией)"]
[]
[null,"6.10.4. Ученая степень   (на дату представления отчета)"]
[]
[null,"6.10.5. Являлся на момент подписания соглашения работником организации:"]
[]
[null,"6.10.6.  Статус исполнителя:"]
[null,null,null,null,null,"Изм. Статуса"]
[null,"  студент очной формы обучения   ",null,{"$f":"IF(C21=\"Да\",\"Статус изменился в отчетном периоде?:\", \"\")","v":""}]
[]
[null,"  аспирант (интерн, ординатор, адъюнкт) очной формы обучения",null,{"$f":"IF(C23=\"Да\",\"Статус изменился в отчетном периоде?:\", \"\")","v":""}]
[]
[null,"  исследователь в возрасте до 39 лет (включительно, на момент начала этапа) ",null,{"$f":"IF(C25=\"Да\",\"Статус изменился в отчетном периоде?:\", \"\")","v":""},null,null,{"$f":"IF(D11=40,\"!!!  Внимание!  Исполнителю 40 лет - статус мог измениться\",\"\")","v":""}]
[]
[null,"  российский ученый  ",null,{"$f":"IF(C27=\"Да\",\"Статус изменился в отчетном периоде?:\", \"\")","v":""}]
[]
[null,"  иностранный ученый ",null,{"$f":"IF(C29=\"Да\",\"Статус изменился в отчетном периоде?:\", \"\")","v":""}]
[]
[null,"Статус  «исследователь в возрасте до 39 лет (включительно)» изменился  в отчетном периоде:",{"$f":"IF(C25=\"Нет\",\"Нет\",IF(F25=\"Да\",\"Да\",IF(F25=\"Нет\",\"Нет\",\"\")))","v":""},{"$f":"IF(C31=\"Да\",\"!!!  Укажите дату изменения статуса:\", \"\")","v":""}]
[]
[null,"6.10.7. Форма отношений с организацией в рамках выполнения проекта РНФ:"]
[]
[null,"  Трудовой договор",null,{"$f":"IF(C35=\"Да\",\"Форма договора:\",\"\")","v":""},null,{"$f":"IF(E35=\"\",\"\",IF(E35=\"не выбрано\",\"\",\"Укажите долю ставки:\"))","v":""},null,{"$f":"IF(E35=\"дистанционный трудовой договор\",\"Укажите населенный пункт, где расположено место работы:\",\"\")","v":""}]
[]
[null,"6.10.13. Сумма вознаграждения с начислениями в рамках трудового договора ДО изменения статуса 'Исследователь в возрасте до 39 лет' (включительно, на момент начала этапа), в том числе выплаты в месяц, когда изменился статус)",null,null,"тыс. рублей","!!!!   Сумму необходимо округлить до отрёх знаков после запятой!!!                             Пример:      302441 руб. следует указать как 302,441 тыс. руб.",null,null,{"$f":"IF(5*G3*$G$35>=(D37+D39)/12,\"ОК\",\"Значение выплат превышено\")","v":"ОК"}]
[]
[null,{"$f":"IF(F25=\"Да\",\"6.10.14. Сумма вознаграждения с начислениями  в  рамках трудового договора ПОСЛЕ  изменения статуса исполнителя 'Исследователь в возрасте до 39 лет'\",\"\")","v":""},null,null,{"$f":"IF(F25=\"Да\",\"тыс. рублей\",\"\")","v":""}]
[]
[]
[null,"  Гражданско-правовой договор",null,{"$f":"IF(C42=\"Да\",\"Укажите:\",\"\")","v":""},{"$f":"IF(C42=\"Да\",\"дата начала  действия  первого  гражданско-правового договора в отчетном периоде:\",\"\")","v":""}]
[]
[null,null,null,null,{"$f":"IF(C42=\"Да\",\"дата окончания  действия  последнего гражданско-правового договора в отчетном периоде: \",\"\")","v":""}]
[]
[null,null,null,null,{"$f":"IF(C42=\"Да\",\"периоды (даты) действия гражданско-правовых договоров:\",\"\")","v":""}]
[]
[null,null,null,null,{"$f":"IF(C42=\"Да\",\"расчет общего количества дней по всем ГПХ:\",\"\")","v":""},null,{"$f":"IF(C42=\"Да\",\"Дата начала ДГПХ\",\"\")","v":""},{"$f":"IF(C42=\"Да\",\"Дата окончания ДГПХ\",\"\")","v":""},{"$f":"IF(C42=\"Да\",\"Количество дней ДГПХ\",\"\")","v":""}]
[null,null,null,null,null,1,null,null,{"$f":"DATEDIF(G49,H49,\"D\")+IF(AND(G49=0,H49=0),0,1)","v":0}]
[null,null,null,null,null,2,null,null,{"$f":"DATEDIF(G50,H50,\"D\")+IF(AND(G50=0,H50=0),0,1)","v":0}]
[null,null,null,null,null,3,null,null,0]
[null,null,null,null,null,4,null,null,0]
[null,null,null,null,null,5,null,null,0]
[null,null,null,null,null,6,null,null,0]
[null,null,null,null,null,7,null,null,0]
[null,null,null,null,null,8,null,null,0]
[null,null,null,null,null,9,null,null,0]
[null,null,null,null,null,10,null,null,0]
[null,null,null,null,null,11,null,null,0]
[null,null,null,null,null,12,null,null,0]
[null,null,null,null,null,13,null,null,0]
[null,null,null,null,null,14,null,null,0]
[null,null,null,null,{"$f":"IF(C42=\"Да\",\"общее количество календарных дней, на которое заключены гражданско-правовые договоры в отчетном периоде:\",\"\")","v":""},null,{"$f":"SUM(I49:I62)","v":0}]
[]
[null,"6.10.13. Сумма вознаграждения с начислениями в рамках трудового договора ДО изменения статуса 'Исследователь в возрасте до 39 лет' (включительно, на момент начала этапа), в том числе выплаты в месяц, когда изменился статус)",null,null,"тыс. рублей","!!!   Сумму необходимо округлить до отрёх знаков после запятой !!!                             Пример:      302441 руб. следует указать как 302,441 тыс. руб.",null,null,{"$f":"IF((D65+D67)/G63<=15,\"ОК\",\"Значение выплат превышено\")","v":{"$error":"#DIV/0!"}}]
[]
[null,{"$f":"IF(F25=\"Да\",\"6.10.14. Сумма вознаграждения с начислениями  в  рамках трудового договора ПОСЛЕ  изменения статуса исполнителя 'Исследователь в возрасте до 39 лет'\",\"\")","v":""},null,null,{"$f":"IF(F25=\"Да\",\"тыс. рублей\",\"\")","v":""}]
[]
[]
[null,"6.10.8. Дата включения в состав научного коллектива (по приказу)"]
[]
[null,"6.10.9. Реквизиты документа о включении в состав научного коллектива*"]
[]
[null,"6.10.10. Дата исключения из состава научного коллектива                                                    (если исключения не было укажите прочерк   \" - \")",null,null,"(при наличии)"]
[]
[null,"6.10.11. Реквизиты документа об исключении из состава научного коллектива                                 (если исключения не было укажите прочерк  \" - \")",null,null,null,null,"(при наличии)"]
[]
[null,"6.10.12. Перечень дат и реквизитов ВСЕХ иных приказов об изменении состава научного коллектива за ВЕСЬ срок реализации проекта  (если иных приказов не было укажите прочерк  \" - \")",null,null,null,null,null,null,"(при наличии)"]
[]
[null,"6.10.13. Сумма вознаграждения с начислениями  ДО  изменения статуса (п. 6.10.6.) исполнителя, в том числе выплаты в месяц, когда изменился статус)",null,{"$f":"D37+D65","v":0},"тыс. рублей"]
[]
[null,{"$f":"IF(F25=\"Да\",\"6.10.14. Сумма вознаграждения с начислениями  ПОСЛЕ  изменения статуса (п. 6.10.6.) исполнителя\",\"\")","v":""},null,{"$f":"D39+D67","v":0},{"$f":"IF(F25=\"Да\",\"тыс. рублей\",\"\")","v":""}]
[null,null,{"$f":"IF(F26=\"Да\",\"студент\",IF(F28=\"Да\",\"аспирант\",IF(G30=\"Да\",\"ученый до 39 лет\",IF(G32=\"Да\",\"российский ученый\",IF(G33=\"Да\",\"иностранный ученый\",\"\")))))","v":""}]
[]
[]
[]
[]
[]
[]
[]
[]
[]
[]
[]
[]
[]
[]
[]
[]
[]
[]
[]
[]
[]
[]
[]
[]
[]
[]
[]
[]
[]
[]
[]
[]
[]
[]
[]
[]
[]
[]
[]
[]
[]
[]
[]
[]
[]
[]
[]
[]
[]
[]
[]
[null,null,null,"Таблицу под строкой не удалять и не менять !!!!"]
[]
[null,null,"D121",{"$f":"ROUND(D80+D82,3)","v":0},"Общая сумма выплат"]
[null,null,null,{"$f":"ROUND(IF(C25=\"Да\",SUM(D80:D82),0),3)","v":0},"До 39 лет  УЧЕТ статус Не менялся"]
[null,null,"D123",{"$f":"ROUND(IF(C31=\"Да\",D80,D138),3)","v":0},"До 39 лет  УЧЕТ статус ИЗМЕНИЛСЯ"]
[null,null,null,{"$f":"IF(C25=\"Да\",\"1\",\"0\")","v":"0"},"Иссл. До 39 лет 1-Да 0- Нет"]

{"sheet":"Исп.15","index":15,"n_rows":140,"n_cols":9,"rows_kept":140,"cut":false,"hidden":false,"merged":[[136,4,136,5],[137,4,137,5],[138,4,138,5],[139,4,139,5],[79,1,79,2],[79,5,79,7],[81,1,81,2],[81,5,81,7],[82,5,82,7],[73,1,73,2],[75,1,75,2],[75,3,75,5],[77,1,77,2],[77,3,77,7],[62,4,62,5],[62,6,62,8],[64,1,64,2],[64,5,64,7],[66,1,66,2],[66,5,66,7],[41,4,41,5],[30,3,30,4],[31,4,31,5],[32,1,32,9],[33,4,33,5],[34,8,34,9],[24,6,24,8],[36,1,36,2],[36,5,36,7],[38,1,38,2],[38,5,38,7],[71,1,71,2],[69,1,69,2],[0,1,0,8],[26,3,26,4],[28,3,28,4],[29,4,29,5],[17,4,17,5],[18,1,18,5],[20,3,20,4],[22,3,22,4],[24,3,24,4],[71,3,71,5],[43,4,43,5],[45,4,45,5],[45,6,45,8],[47,4,47,5]]}
[null,"!!!    В отчёте необходимо заполнить поля, подсвеченные желтым цветом"]
[]
[null,"6.10.1. ФИО члена научного коллектива",null,null,null,"Средняя ЗП по региону",{"$f":"Исп.01!G3","v":77},"т.р./мес."]
[]
[null,"В случае изменения в отчетный период фамилии, имени и/или отчества члена научного коллектива укажите ФИО до изменения: "]
[]
[null,"Руководитель проекта"]
[]
[null,"Основной исполнитель проекта"]
[]
[null,"6.10.2. Число, месяц и год рождения",null,{"$f":"INT(YEARFRAC(C11,TODAY(),1))","v":125},"Возраст (Годы)"]
[]
[null,"6.10.3. Должность   (при наличии трудового договора с организацией)"]
[]
[null,"6.10.4. Ученая степень   (на дату представления отчета)"]
[]
[null,"6.10.5. Являлся на момент подписания соглашения работником организации:"]
[]
[null,"6.10.6.  Статус исполнителя:"]
[null,null,null,null,null,"Изм. Статуса"]
[null,"  студент очной формы обучения   ",null,{"$f":"IF(C21=\"Да\",\"Статус изменился в отчетном периоде?:\", \"\")","v":""}]
[]
[null,"  аспирант (интерн, ординатор, адъюнкт) очной формы обучения",null,{"$f":"IF(C23=\"Да\",\"Статус изменился в отчетном периоде?:\", \"\")","v":""}]
[]
[null,"  исследователь в возрасте до 39 лет (включительно, на момент начала этапа) ",null,{"$f":"IF(C25=\"Да\",\"Статус изменился в отчетном периоде?:\", \"\")","v":""},null,null,{"$f":"IF(D11=40,\"!!!  Внимание!  Исполнителю 40 лет - статус мог измениться\",\"\")","v":""}]
[]
[null,"  российский ученый  ",null,{"$f":"IF(C27=\"Да\",\"Статус изменился в отчетном периоде?:\", \"\")","v":""}]
[]
[null,"  иностранный ученый ",null,{"$f":"IF(C29=\"Да\",\"Статус изменился в отчетном периоде?:\", \"\")","v":""}]
[]
[null,"Статус  «исследователь в возрасте до 39 лет (включительно)» изменился  в отчетном периоде:",{"$f":"IF(C25=\"Нет\",\"Нет\",IF(F25=\"Да\",\"Да\",IF(F25=\"Нет\",\"Нет\",\"\")))","v":""},{"$f":"IF(C31=\"Да\",\"!!!  Укажите дату изменения статуса:\", \"\")","v":""}]
[]
[null,"6.10.7. Форма отношений с организацией в рамках выполнения проекта РНФ:"]
[]
[null,"  Трудовой договор",null,{"$f":"IF(C35=\"Да\",\"Форма договора:\",\"\")","v":""},null,{"$f":"IF(E35=\"\",\"\",IF(E35=\"не выбрано\",\"\",\"Укажите долю ставки:\"))","v":""},null,{"$f":"IF(E35=\"дистанционный трудовой договор\",\"Укажите населенный пункт, где расположено место работы:\",\"\")","v":""}]
[]
[null,"6.10.13. Сумма вознаграждения с начислениями в рамках трудового договора ДО изменения статуса 'Исследователь в возрасте до 39 лет' (включительно, на момент начала этапа), в том числе выплаты в месяц, когда изменился статус)",null,null,"тыс. рублей","!!!!   Сумму необходимо округлить до отрёх знаков после запятой!!!                             Пример:      302441 руб. следует указать как 302,441 тыс. руб.",null,null,{"$f":"IF(5*G3*$G$35>=(D37+D39)/12,\"ОК\",\"Значение выплат превышено\")","v":"ОК"}]
[]
[null,{"$f":"IF(F25=\"Да\",\"6.10.14. Сумма вознаграждения с начислениями  в  рамках трудового договора ПОСЛЕ  изменения статуса исполнителя 'Исследователь в возрасте до 39 лет'\",\"\")","v":""},null,null,{"$f":"IF(F25=\"Да\",\"тыс. рублей\",\"\")","v":""}]
[]
[]
[null,"  Гражданско-правовой договор",null,{"$f":"IF(C42=\"Да\",\"Укажите:\",\"\")","v":""},{"$f":"IF(C42=\"Да\",\"дата начала  действия  первого  гражданско-правового договора в отчетном периоде:\",\"\")","v":""}]
[]
[null,null,null,null,{"$f":"IF(C42=\"Да\",\"дата окончания  действия  последнего гражданско-правового договора в отчетном периоде: \",\"\")","v":""}]
[]
[null,null,null,null,{"$f":"IF(C42=\"Да\",\"периоды (даты) действия гражданско-правовых договоров:\",\"\")","v":""}]
[]
[null,null,null,null,{"$f":"IF(C42=\"Да\",\"расчет общего количества дней по всем ГПХ:\",\"\")","v":""},null,{"$f":"IF(C42=\"Да\",\"Дата начала ДГПХ\",\"\")","v":""},{"$f":"IF(C42=\"Да\",\"Дата окончания ДГПХ\",\"\")","v":""},{"$f":"IF(C42=\"Да\",\"Количество дней ДГПХ\",\"\")","v":""}]
[null,null,null,null,null,1,null,null,{"$f":"DATEDIF(G49,H49,\"D\")+IF(AND(G49=0,H49=0),0,1)","v":0}]
[null,null,null,null,null,2,null,null,{"$f":"DATEDIF(G50,H50,\"D\")+IF(AND(G50=0,H50=0),0,1)","v":0}]
[null,null,null,null,null,3,null,null,0]
[null,null,null,null,null,4,null,null,0]
[null,null,null,null,null,5,null,null,0]
[null,null,null,null,null,6,null,null,0]
[null,null,null,null,null,7,null,null,0]
[null,null,null,null,null,8,null,null,0]
[null,null,null,null,null,9,null,null,0]
[null,null,null,null,null,10,null,null,0]
[null,null,null,null,null,11,null,null,0]
[null,null,null,null,null,12,null,null,0]
[null,null,null,null,null,13,null,null,0]
[null,null,null,null,null,14,null,null,0]
[null,null,null,null,{"$f":"IF(C42=\"Да\",\"общее количество календарных дней, на которое заключены гражданско-правовые договоры в отчетном периоде:\",\"\")","v":""},null,{"$f":"SUM(I49:I62)","v":0}]
[]
[null,"6.10.13. Сумма вознаграждения с начислениями в рамках трудового договора ДО изменения статуса 'Исследователь в возрасте до 39 лет' (включительно, на момент начала этапа), в том числе выплаты в месяц, когда изменился статус)",null,null,"тыс. рублей","!!!   Сумму необходимо округлить до отрёх знаков после запятой !!!                             Пример:      302441 руб. следует указать как 302,441 тыс. руб.",null,null,{"$f":"IF((D65+D67)/G63<=15,\"ОК\",\"Значение выплат превышено\")","v":{"$error":"#DIV/0!"}}]
[]
[null,{"$f":"IF(F25=\"Да\",\"6.10.14. Сумма вознаграждения с начислениями  в  рамках трудового договора ПОСЛЕ  изменения статуса исполнителя 'Исследователь в возрасте до 39 лет'\",\"\")","v":""},null,null,{"$f":"IF(F25=\"Да\",\"тыс. рублей\",\"\")","v":""}]
[]
[]
[null,"6.10.8. Дата включения в состав научного коллектива (по приказу)"]
[]
[null,"6.10.9. Реквизиты документа о включении в состав научного коллектива*"]
[]
[null,"6.10.10. Дата исключения из состава научного коллектива                                                    (если исключения не было укажите прочерк   \" - \")",null,null,"(при наличии)"]
[]
[null,"6.10.11. Реквизиты документа об исключении из состава научного коллектива                                 (если исключения не было укажите прочерк  \" - \")",null,null,null,null,"(при наличии)"]
[]
[null,"6.10.12. Перечень дат и реквизитов ВСЕХ иных приказов об изменении состава научного коллектива за ВЕСЬ срок реализации проекта  (если иных приказов не было укажите прочерк  \" - \")",null,null,null,null,null,null,"(при наличии)"]
[]
[null,"6.10.13. Сумма вознаграждения с начислениями  ДО  изменения статуса (п. 6.10.6.) исполнителя, в том числе выплаты в месяц, когда изменился статус)",null,{"$f":"D37+D65","v":0},"тыс. рублей"]
[]
[null,{"$f":"IF(F25=\"Да\",\"6.10.14. Сумма вознаграждения с начислениями  ПОСЛЕ  изменения статуса (п. 6.10.6.) исполнителя\",\"\")","v":""},null,{"$f":"D39+D67","v":0},{"$f":"IF(F25=\"Да\",\"тыс. рублей\",\"\")","v":""}]
[null,null,{"$f":"IF(F26=\"Да\",\"студент\",IF(F28=\"Да\",\"аспирант\",IF(G30=\"Да\",\"ученый до 39 лет\",IF(G32=\"Да\",\"российский ученый\",IF(G33=\"Да\",\"иностранный ученый\",\"\")))))","v":""}]
[]
[]
[]
[]
[]
[]
[]
[]
[]
[]
[]
[]
[]
[]
[]
[]
[]
[]
[]
[]
[]
[]
[]
[]
[]
[]
[]
[]
[]
[]
[]
[]
[]
[]
[]
[]
[]
[]
[]
[]
[]
[]
[]
[]
[]
[]
[]
[]
[]
[]
[]
[null,null,null,"Таблицу под строкой не удалять и не менять !!!!"]
[]
[null,null,"D121",{"$f":"ROUND(D80+D82,3)","v":0},"Общая сумма выплат"]
[null,null,null,{"$f":"ROUND(IF(C25=\"Да\",SUM(D80:D82),0),3)","v":0},"До 39 лет  УЧЕТ статус Не менялся"]
[null,null,"D123",{"$f":"ROUND(IF(C31=\"Да\",D80,D138),3)","v":0},"До 39 лет  УЧЕТ статус ИЗМЕНИЛСЯ"]
[null,null,null,{"$f":"IF(C25=\"Да\",\"1\",\"0\")","v":"0"},"Иссл. До 39 лет 1-Да 0- Нет"]

{"sheet":"Лист1","index":16,"n_rows":0,"n_cols":0,"rows_kept":0,"cut":false,"hidden":false,"merged":[]}